{"text_format":"1","workbook":"xlsx","n_sheets":13,"sheets":["Configuration","January","February","March","April","May","June","July","August","September","October","November","December"],"not_rendered":{"charts":0,"images":13,"macros":1,"external_links":0,"defined_names":0,"comments":0,"pivot_tables":0},"unopened":[],"bounds":{"document_bytes":16777216,"sheet_cells":100000,"rows_first":2000,"rows_last":500,"rows_between":2000,"halvings":0,"cell_chars":16384,"cell_head_chars":4096},"cells_cut":0,"cells_raw":0,"read":"whole","date_system":"1900"}

{"sheet":"Configuration","index":0,"n_rows":78,"n_cols":33,"rows_kept":78,"cut":false,"hidden":true,"merged":[]}
["Month","WeekSelection","Dropdown","Category","Expense",null,null,"day","Week","m1_21","1_21","m2_21","2_21","m3_21","3_21","m4_21","4_21","m5_21","5_21","m6_21","6_21","m7_21","7_21","m8_21","8_21","m9_21","9_21","m10_21","10_21","m11_21","11_21","m12_21","12_21"]
[1,1,"(Week 1) 28 Dec - 3 Jan 2021","DAILY","Beverage",null,null,1,1,"2020-12-01",28,"Feb",1,"Mar",1,"Mar",29,"Apr",26,"May",31,"Jun",28,"Jul",26,"Aug",30,"Sep",27,"Nov",1,"Nov",29]
[1,2,"(Week 2) 4 Jan - 10 Jan 2021","WEEKLY","Breakfast",null,null,2,1,"2020-12-01",29,"Feb",2,"Mar",2,"Mar",30,"Apr",27,"Jun",1,"Jun",29,"Jul",27,"Aug",31,"Sep",28,"Nov",2,"Nov",30]
[1,3,"(Week 3) 11 Jan - 17 Jan 2021","MONTHLY","Car",null,null,3,1,"2020-12-01",30,"Feb",3,"Mar",3,"Mar",31,"Apr",28,"Jun",2,"Jun",30,"Jul",28,"Sep",1,"Sep",29,"Nov",3,"Dec",1]
[1,4,"(Week 4) 18 Jan - 24 Jan 2021","COMMITMENT","Car Lease",null,null,4,1,"2020-12-01",31,"Feb",4,"Mar",4,"Apr",1,"Apr",29,"Jun",3,"Jul",1,"Jul",29,"Sep",2,"Sep",30,"Nov",4,"Dec",2]
[1,5,"(Week 5) 25 Jan - 31 Jan 2021","ENTERTAINMENT","Car Loan",null,null,5,1,"Jan",1,"Feb",5,"Mar",5,"Apr",2,"Apr",30,"Jun",4,"Jul",2,"Jul",30,"Sep",3,"Oct",1,"Nov",5,"Dec",3]
[1,6,"X","EXTRA","Car Maintenance",null,null,6,1,"Jan",2,"Feb",6,"Mar",6,"Apr",3,"May",1,"Jun",5,"Jul",3,"Jul",31,"Sep",4,"Oct",2,"Nov",6,"Dec",4]
[2,1,"(Week 1) 1 Feb - 7 Feb 2021","FIXED","Car Rental",null,null,7,1,"Jan",3,"Feb",7,"Mar",7,"Apr",4,"May",2,"Jun",6,"Jul",4,"Aug",1,"Sep",5,"Oct",3,"Nov",7,"Dec",5]
[2,2,"(Week 2) 8 Feb - 14 Feb 2021","LEISURE","Cell/Mobile Phone",null,null,8,2,"Jan",4,"Feb",8,"Mar",8,"Apr",5,"May",3,"Jun",7,"Jul",5,"Aug",2,"Sep",6,"Oct",4,"Nov",8,"Dec",6]
[2,3,"(Week 3) 15 Feb - 21 Feb 2021","MISCELLANEOUS","Child Care",null,null,9,2,"Jan",5,"Feb",9,"Mar",9,"Apr",6,"May",4,"Jun",8,"Jul",6,"Aug",3,"Sep",7,"Oct",5,"Nov",9,"Dec",7]
[2,4,"(Week 4) 22 Feb - 28 Feb 2021","NEEDS","Clothing",null,null,10,2,"Jan",6,"Feb",10,"Mar",10,"Apr",7,"May",5,"Jun",9,"Jul",7,"Aug",4,"Sep",8,"Oct",6,"Nov",10,"Dec",8]
[2,5,"X","OTHERS","Club Membership",null,null,11,2,"Jan",7,"Feb",11,"Mar",11,"Apr",8,"May",6,"Jun",10,"Jul",8,"Aug",5,"Sep",9,"Oct",7,"Nov",11,"Dec",9]
[2,6,"X",null,"Commute",null,null,12,2,"Jan",8,"Feb",12,"Mar",12,"Apr",9,"May",7,"Jun",11,"Jul",9,"Aug",6,"Sep",10,"Oct",8,"Nov",12,"Dec",10]
[3,1,"(Week 1) 1 Mar - 7 Mar 2021",null,"Credit Card",null,null,13,2,"Jan",9,"Feb",13,"Mar",13,"Apr",10,"May",8,"Jun",12,"Jul",10,"Aug",7,"Sep",11,"Oct",9,"Nov",13,"Dec",11]
[3,2,"(Week 2) 8 Mar - 14 Mar 2021",null,"Debit Card",null,null,14,2,"Jan",10,"Feb",14,"Mar",14,"Apr",11,"May",9,"Jun",13,"Jul",11,"Aug",8,"Sep",12,"Oct",10,"Nov",14,"Dec",12]
[3,3,"(Week 3) 15 Mar - 21 Mar 2021",null,"Dining",null,null,15,3,"Jan",11,"Feb",15,"Mar",15,"Apr",12,"May",10,"Jun",14,"Jul",12,"Aug",9,"Sep",13,"Oct",11,"Nov",15,"Dec",13]
[3,4,"(Week 4) 22 Mar - 28 Mar 2021",null,"Dinner",null,null,16,3,"Jan",12,"Feb",16,"Mar",16,"Apr",13,"May",11,"Jun",15,"Jul",13,"Aug",10,"Sep",14,"Oct",12,"Nov",16,"Dec",14]
[3,5,"(Week 5) 29 Mar - 4 Apr 2021",null,"Education Loan",null,null,17,3,"Jan",13,"Feb",17,"Mar",17,"Apr",14,"May",12,"Jun",16,"Jul",14,"Aug",11,"Sep",15,"Oct",13,"Nov",17,"Dec",15]
[3,6,"X",null,"Electricity",null,null,18,3,"Jan",14,"Feb",18,"Mar",18,"Apr",15,"May",13,"Jun",17,"Jul",15,"Aug",12,"Sep",16,"Oct",14,"Nov",18,"Dec",16]
[4,1,"(Week 1) 29 Mar - 4 Apr 2021",null,"Emergency",null,null,19,3,"Jan",15,"Feb",19,"Mar",19,"Apr",16,"May",14,"Jun",18,"Jul",16,"Aug",13,"Sep",17,"Oct",15,"Nov",19,"Dec",17]
[4,2,"(Week 2) 5 Apr - 11 Apr 2021",null,"Essentials",null,null,20,3,"Jan",16,"Feb",20,"Mar",20,"Apr",17,"May",15,"Jun",19,"Jul",17,"Aug",14,"Sep",18,"Oct",16,"Nov",20,"Dec",18]
[4,3,"(Week 3) 12 Apr - 18 Apr 2021",null,"Family",null,null,21,3,"Jan",17,"Feb",21,"Mar",21,"Apr",18,"May",16,"Jun",20,"Jul",18,"Aug",15,"Sep",19,"Oct",17,"Nov",21,"Dec",19]
[4,4,"(Week 4) 19 Apr - 25 Apr 2021",null,"Food",null,null,22,4,"Jan",18,"Feb",22,"Mar",22,"Apr",19,"May",17,"Jun",21,"Jul",19,"Aug",16,"Sep",20,"Oct",18,"Nov",22,"Dec",20]
[4,5,"(Week 5) 26 Apr - 2 May 2021",null,"Gasoline",null,null,23,4,"Jan",19,"Feb",23,"Mar",23,"Apr",20,"May",18,"Jun",22,"Jul",20,"Aug",17,"Sep",21,"Oct",19,"Nov",23,"Dec",21]
[4,6,"X",null,"Groceries",null,null,24,4,"Jan",20,"Feb",24,"Mar",24,"Apr",21,"May",19,"Jun",23,"Jul",21,"Aug",18,"Sep",22,"Oct",20,"Nov",24,"Dec",22]
[5,1,"(Week 1) 26 Apr - 2 May 2021",null,"Gym",null,null,25,4,"Jan",21,"Feb",25,"Mar",25,"Apr",22,"May",20,"Jun",24,"Jul",22,"Aug",19,"Sep",23,"Oct",21,"Nov",25,"Dec",23]
[5,2,"(Week 2) 3 May - 9 May 2021",null,"Health Insurance",null,null,26,4,"Jan",22,"Feb",26,"Mar",26,"Apr",23,"May",21,"Jun",25,"Jul",23,"Aug",20,"Sep",24,"Oct",22,"Nov",26,"Dec",24]
[5,3,"(Week 3) 10 May - 16 May 2021",null,"Home Decor",null,null,27,4,"Jan",23,"Feb",27,"Mar",27,"Apr",24,"May",22,"Jun",26,"Jul",24,"Aug",21,"Sep",25,"Oct",23,"Nov",27,"Dec",25]
[5,4,"(Week 4) 17 May - 23 May 2021",null,"Home Insurance",null,null,28,4,"Jan",24,"Feb",28,"Mar",28,"Apr",25,"May",23,"Jun",27,"Jul",25,"Aug",22,"Sep",26,"Oct",24,"Nov",28,"Dec",26]
[5,5,"(Week 5) 24 May - 30 May 2021",null,"House",null,null,29,5,"Jan",25,"Mar",1,"Mar",29,"Apr",26,"May",24,"Jun",28,"Jul",26,"Aug",23,"Sep",27,"Oct",25,"Nov",29,"Dec",27]
[5,6,"(Week 6) 31 May - 6 Jun 2021",null,"House Rent",null,null,30,5,"Jan",26,"Mar",2,"Mar",30,"Apr",27,"May",25,"Jun",29,"Jul",27,"Aug",24,"Sep",28,"Oct",26,"Nov",30,"Dec",28]
[6,1,"(Week 1) 31 May - 6 Jun 2021",null,"Housekeeping",null,null,31,5,"Jan",27,"Mar",3,"Mar",31,"Apr",28,"May",26,"Jun",30,"Jul",28,"Aug",25,"Sep",29,"Oct",27,"Dec",1,"Dec",29]
[6,2,"(Week 2) 7 Jun - 13 Jun 2021",null,"Husband",null,null,32,5,"Jan",28,"Mar",4,"Apr",1,"Apr",29,"May",27,"Jul",1,"Jul",29,"Aug",26,"Sep",30,"Oct",28,"Dec",2,"Dec",30]
[6,3,"(Week 3) 14 Jun - 20 Jun 2021",null,"Insurance",null,null,33,5,"Jan",29,"Mar",5,"Apr",2,"Apr",30,"May",28,"Jul",2,"Jul",30,"Aug",27,"Oct",1,"Oct",29,"Dec",3,"Dec",31]
[6,4,"(Week 4) 21 Jun - 27 Jun 2021",null,"Internet",null,null,34,5,"Jan",30,"Mar",6,"Apr",3,"May",1,"May",29,"Jul",3,"Jul",31,"Aug",28,"Oct",2,"Oct",30,"Dec",4,"2022-01-01",1]
[6,5,"(Week 5) 28 Jun - 4 Jul 2021",null,"Jewelry",null,null,35,5,"Jan",31,"Mar",7,"Apr",4,"May",2,"May",30,"Jul",4,"Aug",1,"Aug",29,"Oct",3,"Oct",31,"Dec",5,"2022-01-01",2]
[6,6,"X",null,"Laundry",null,null,36,6,"Feb",1,"Mar",8,"Apr",5,"May",3,"May",31,"Jul",5,"Aug",2,"Aug",30,"Oct",4,"Nov",1,"Dec",6,"2022-01-01",3]
[7,1,"(Week 1) 28 Jun - 4 Jul 2021",null,"Life Insurance",null,null,37,6,"Feb",2,"Mar",9,"Apr",6,"May",4,"Jun",1,"Jul",6,"Aug",3,"Aug",31,"Oct",5,"Nov",2,"Dec",7,"2022-01-01",4]
[7,2,"(Week 2) 5 Jul - 11 Jul 2021",null,"Loan",null,null,38,6,"Feb",3,"Mar",10,"Apr",7,"May",5,"Jun",2,"Jul",7,"Aug",4,"Sep",1,"Oct",6,"Nov",3,"Dec",8,"2022-01-01",5]
[7,3,"(Week 3) 12 Jul - 18 Jul 2021",null,"Lunch",null,null,39,6,"Feb",4,"Mar",11,"Apr",8,"May",6,"Jun",3,"Jul",8,"Aug",5,"Sep",2,"Oct",7,"Nov",4,"Dec",9,"2022-01-01",6]
[7,4,"(Week 4) 19 Jul - 25 Jul 2021",null,"Meals",null,null,40,6,"Feb",5,"Mar",12,"Apr",9,"May",7,"Jun",4,"Jul",9,"Aug",6,"Sep",3,"Oct",8,"Nov",5,"Dec",10,"2022-01-01",7]
[7,5,"(Week 5) 26 Jul - 1 Aug 2021",null,"Medical",null,null,41,6,"Feb",6,"Mar",13,"Apr",10,"May",8,"Jun",5,"Jul",10,"Aug",7,"Sep",4,"Oct",9,"Nov",6,"Dec",11,"2022-01-01",8]
[7,6,"X",null,"Miscellaneous",null,null,42,6,"Feb",7,"Mar",14,"Apr",11,"May",9,"Jun",6,"Jul",11,"Aug",8,"Sep",5,"Oct",10,"Nov",7,"Dec",12,"2022-01-01",9]
[8,1,"(Week 1) 26 Jul - 1 Aug 2021",null,"Mortgage",null,null,43,7,"Feb",8,"Mar",15,"Apr",12,"May",10,"Jun",7,"Jul",12,"Aug",9,"Sep",6,"Oct",11,"Nov",8,"Dec",13,"2022-01-01",10]
[8,2,"(Week 2) 2 Aug - 8 Aug 2021",null,"Movie",null,null,44,7,"Feb",9,"Mar",16,"Apr",13,"May",11,"Jun",8,"Jul",13,"Aug",10,"Sep",7,"Oct",12,"Nov",9,"Dec",14,"2022-01-01",11]
[8,3,"(Week 3) 9 Aug - 15 Aug 2021",null,"Others",null,null,45,7,"Feb",10,"Mar",17,"Apr",14,"May",12,"Jun",9,"Jul",14,"Aug",11,"Sep",8,"Oct",13,"Nov",10,"Dec",15,"2022-01-01",12]
[8,4,"(Week 4) 16 Aug - 22 Aug 2021",null,"Parents",null,null,46,7,"Feb",11,"Mar",18,"Apr",15,"May",13,"Jun",10,"Jul",15,"Aug",12,"Sep",9,"Oct",14,"Nov",11,"Dec",16,"2022-01-01",13]
[8,5,"(Week 5) 23 Aug - 29 Aug 2021",null,"Petrol",null,null,47,7,"Feb",12,"Mar",19,"Apr",16,"May",14,"Jun",11,"Jul",16,"Aug",13,"Sep",10,"Oct",15,"Nov",12,"Dec",17,"2022-01-01",14]
[8,6,"(Week 6) 30 Aug - 5 Sep 2021",null,"Piggy Bank",null,null,48,7,"Feb",13,"Mar",20,"Apr",17,"May",15,"Jun",12,"Jul",17,"Aug",14,"Sep",11,"Oct",16,"Nov",13,"Dec",18,"2022-01-01",15]
[9,1,"(Week 1) 30 Aug - 5 Sep 2021",null,"Public Transportation",null,null,49,7,"Feb",14,"Mar",21,"Apr",18,"May",16,"Jun",13,"Jul",18,"Aug",15,"Sep",12,"Oct",17,"Nov",14,"Dec",19,"2022-01-01",16]
[9,2,"(Week 2) 6 Sep - 12 Sep 2021",null,"Rent",null,null,50,8,"Feb",15,"Mar",22,"Apr",19,"May",17,"Jun",14,"Jul",19,"Aug",16,"Sep",13,"Oct",18,"Nov",15,"Dec",20,"2022-01-01",17]
[9,3,"(Week 3) 13 Sep - 19 Sep 2021",null,"Sanitation/Garbage",null,null,51,8,"Feb",16,"Mar",23,"Apr",20,"May",18,"Jun",15,"Jul",20,"Aug",17,"Sep",14,"Oct",19,"Nov",16,"Dec",21,"2022-01-01",18]
[9,4,"(Week 4) 20 Sep - 26 Sep 2021",null,"Savings",null,null,52,8,"Feb",17,"Mar",24,"Apr",21,"May",19,"Jun",16,"Jul",21,"Aug",18,"Sep",15,"Oct",20,"Nov",17,"Dec",22,"2022-01-01",19]
[9,5,"(Week 5) 27 Sep - 3 Oct 2021",null,"School",null,null,53,8,"Feb",18,"Mar",25,"Apr",22,"May",20,"Jun",17,"Jul",22,"Aug",19,"Sep",16,"Oct",21,"Nov",18,"Dec",23,"2022-01-01",20]
[9,6,"X",null,"Self-care",null,null,54,8,"Feb",19,"Mar",26,"Apr",23,"May",21,"Jun",18,"Jul",23,"Aug",20,"Sep",17,"Oct",22,"Nov",19,"Dec",24,"2022-01-01",21]
[10,1,"(Week 1) 27 Sep - 3 Oct 2021",null,"Spouse",null,null,55,8,"Feb",20,"Mar",27,"Apr",24,"May",22,"Jun",19,"Jul",24,"Aug",21,"Sep",18,"Oct",23,"Nov",20,"Dec",25,"2022-01-01",22]
[10,2,"(Week 2) 4 Oct - 10 Oct 2021",null,"Tax",null,null,56,8,"Feb",21,"Mar",28,"Apr",25,"May",23,"Jun",20,"Jul",25,"Aug",22,"Sep",19,"Oct",24,"Nov",21,"Dec",26,"2022-01-01",23]
[10,3,"(Week 3) 11 Oct - 17 Oct 2021",null,"Toiletries",null,null,57,9,"Feb",22,"Mar",29,"Apr",26,"May",24,"Jun",21,"Jul",26,"Aug",23,"Sep",20,"Oct",25,"Nov",22,"Dec",27,"2022-01-01",24]
[10,4,"(Week 4) 18 Oct - 24 Oct 2021",null,"Toll",null,null,58,9,"Feb",23,"Mar",30,"Apr",27,"May",25,"Jun",22,"Jul",27,"Aug",24,"Sep",21,"Oct",26,"Nov",23,"Dec",28,"2022-01-01",25]
[10,5,"(Week 5) 25 Oct - 31 Oct 2021",null,"Travel",null,null,59,9,"Feb",24,"Mar",31,"Apr",28,"May",26,"Jun",23,"Jul",28,"Aug",25,"Sep",22,"Oct",27,"Nov",24,"Dec",29,"2022-01-01",26]
[10,6,"X",null,"Tuition",null,null,60,9,"Feb",25,"Apr",1,"Apr",29,"May",27,"Jun",24,"Jul",29,"Aug",26,"Sep",23,"Oct",28,"Nov",25,"Dec",30,"2022-01-01",27]
[11,1,"(Week 1) 1 Nov - 7 Nov 2021",null,"Water",null,null,61,9,"Feb",26,"Apr",2,"Apr",30,"May",28,"Jun",25,"Jul",30,"Aug",27,"Sep",24,"Oct",29,"Nov",26,"Dec",31,"2022-01-01",28]
[11,2,"(Week 2) 8 Nov - 14 Nov 2021",null,"Wife",null,null,62,9,"Feb",27,"Apr",3,"May",1,"May",29,"Jun",26,"Jul",31,"Aug",28,"Sep",25,"Oct",30,"Nov",27,"2022-01-01",1,"2022-01-01",29]
[11,3,"(Week 3) 15 Nov - 21 Nov 2021",null,null,null,null,63,9,"Feb",28,"Apr",4,"May",2,"May",30,"Jun",27,"Aug",1,"Aug",29,"Sep",26,"Oct",31,"Nov",28,"2022-01-01",2,"2022-01-01",30]
[11,4,"(Week 4) 22 Nov - 28 Nov 2021",null,null,null,null,64,10,"Mar",1,"Apr",5,"May",3,"May",31,"Jun",28,"Aug",2,"Aug",30,"Sep",27,"Nov",1,"Nov",29,"2022-01-01",3,"2022-01-01",31]
[11,5,"(Week 5) 29 Nov - 5 Dec 2021",null,null,null,null,65,10,"Mar",2,"Apr",6,"May",4,"Jun",1,"Jun",29,"Aug",3,"Aug",31,"Sep",28,"Nov",2,"Nov",30,"2022-01-01",4,"2022-02-01",1]
[11,6,"X",null,null,null,null,66,10,"Mar",3,"Apr",7,"May",5,"Jun",2,"Jun",30,"Aug",4,"Sep",1,"Sep",29,"Nov",3,"Dec",1,"2022-01-01",5,"2022-02-01",2]
[12,1,"(Week 1) 29 Nov - 5 Dec 2021",null,null,null,null,67,10,"Mar",4,"Apr",8,"May",6,"Jun",3,"Jul",1,"Aug",5,"Sep",2,"Sep",30,"Nov",4,"Dec",2,"2022-01-01",6,"2022-02-01",3]
[12,2,"(Week 2) 6 Dec - 12 Dec 2021",null,null,null,null,68,10,"Mar",5,"Apr",9,"May",7,"Jun",4,"Jul",2,"Aug",6,"Sep",3,"Oct",1,"Nov",5,"Dec",3,"2022-01-01",7,"2022-02-01",4]
[12,3,"(Week 3) 13 Dec - 19 Dec 2021",null,null,null,null,69,10,"Mar",6,"Apr",10,"May",8,"Jun",5,"Jul",3,"Aug",7,"Sep",4,"Oct",2,"Nov",6,"Dec",4,"2022-01-01",8,"2022-02-01",5]
[12,4,"(Week 4) 20 Dec - 26 Dec 2021",null,null,null,null,70,10,"Mar",7,"Apr",11,"May",9,"Jun",6,"Jul",4,"Aug",8,"Sep",5,"Oct",3,"Nov",7,"Dec",5,"2022-01-01",9,"2022-02-01",6]
[12,5,"(Week 5) 27 Dec 2021 - 2 Jan 2022",null,null,null,null,71,11,"Mar",8,"Apr",12,"May",10,"Jun",7,"Jul",5,"Aug",9,"Sep",6,"Oct",4,"Nov",8,"Dec",6,"2022-01-01",10,"2022-02-01",7]
[12,6,"X",null,null,null,null,72,11,"Mar",9,"Apr",13,"May",11,"Jun",8,"Jul",6,"Aug",10,"Sep",7,"Oct",5,"Nov",9,"Dec",7,"2022-01-01",11,"2022-02-01",8]
[null,null,null,null,null,null,null,73,11,"Mar",10,"Apr",14,"May",12,"Jun",9,"Jul",7,"Aug",11,"Sep",8,"Oct",6,"Nov",10,"Dec",8,"2022-01-01",12,"2022-02-01",9]
[null,null,null,null,null,null,null,74,11,"Mar",11,"Apr",15,"May",13,"Jun",10,"Jul",8,"Aug",12,"Sep",9,"Oct",7,"Nov",11,"Dec",9,"2022-01-01",13,"2022-02-01",10]
[null,null,null,null,null,null,null,75,11,"Mar",12,"Apr",16,"May",14,"Jun",11,"Jul",9,"Aug",13,"Sep",10,"Oct",8,"Nov",12,"Dec",10,"2022-01-01",14,"2022-02-01",11]
[null,null,null,null,null,null,null,76,11,"Mar",13,"Apr",17,"May",15,"Jun",12,"Jul",10,"Aug",14,"Sep",11,"Oct",9,"Nov",13,"Dec",11,"2022-01-01",15,"2022-02-01",12]
[null,null,null,null,null,null,null,77,11,"Mar",14,"Apr",18,"May",16,"Jun",13,"Jul",11,"Aug",15,"Sep",12,"Oct",10,"Nov",14,"Dec",12,"2022-01-01",16,"2022-02-01",13]

{"sheet":"January","index":1,"n_rows":41,"n_cols":57,"rows_kept":41,"cut":false,"hidden":false,"merged":[[7,13,7,43],[8,1,8,3],[8,5,8,8],[0,0,0,1],[4,7,5,7],[4,8,5,10],[4,5,5,6],[2,2,3,3],[2,1,3,1],[4,1,5,1],[4,2,5,3],[7,9,7,12],[8,54,8,56],[40,48,40,50],[4,43,5,48],[4,50,5,52],[4,49,5,49],[7,44,7,50]]}
[]
[]
[null,"Currency","$"]
[]
[null,"Payday Week","(Week 1) 28 Dec - 3 Jan 2021",null,null,"INCOME TOTAL",null,{"$f":"C3","v":"$"},{"$f":"D41","v":0},null,null,null,null,null,null,null,null,null,null,null,null,null,null,null,null,null,null,null,null,null,null,null,null,null,null,null,null,null,null,null,null,null,null,"INCOME BALANCE",null,null,null,null,null,{"$f":"C3","v":"$"},{"$f":"D41-BA41","v":0}]
[]
[]
[null,null,null,null,null,null,null,null,null,"2020-12-01",null,null,null,"Jan",null,null,null,null,null,null,null,null,null,null,null,null,null,null,null,null,null,null,null,null,null,null,null,null,null,null,null,null,null,null,"Feb"]
[null,"Income Table",null,null,null,"Main Table",null,null,null,28,29,30,31,1,2,3,4,5,6,7,8,9,10,11,12,13,14,15,16,17,18,19,20,21,22,23,24,25,26,27,28,29,30,31,1,2,3,4,5,6,7,null,null,null,"Pocket Balance Table"]
[null,"Income",null,"Value",null,"Category","Expense",null,"Budget","M","T","W","T","F","S","S","M","T","W","T","F","S","S","M","T","W","T","F","S","S","M","T","W","T","F","S","S","M","T","W","T","F","S","S","M","T","W","T","F","S","S",null,"Sum",null,"Balance",null,"Value"]
[null,null,{"$f":"IF(B11<>\"\", $C$3,\"\")","v":""},null,null,null,null,{"$f":"+IF(G11<>\"\",$C$3,\"\")","v":""},null,null,null,null,null,null,null,null,null,null,null,null,null,null,null,null,null,null,null,null,null,null,null,null,null,null,null,null,null,null,null,null,null,null,null,null,null,null,null,null,null,null,null,{"$f":"IF(BA11<>0,$C$3,\"\")","v":""},{"$f":"SUM(J11:AY11)","v":0},null,null,{"$f":"IF(BC11<>\"\",$C$3,\"\")","v":""}]
[null,null,{"$f":"IF(B12<>\"\", $C$3,\"\")","v":""},null,null,null,null,{"$f":"+IF(G12<>\"\",$C$3,\"\")","v":""},null,null,null,null,null,null,null,null,null,null,null,null,null,null,null,null,null,null,null,null,null,null,null,null,null,null,null,null,null,null,null,null,null,null,null,null,null,null,null,null,null,null,null,{"$f":"IF(BA12<>0,$C$3,\"\")","v":""},{"$f":"SUM(J12:AY12)","v":0},null,null,{"$f":"IF(BC12<>\"\",$C$3,\"\")","v":""}]
[null,null,{"$f":"IF(B13<>\"\", $C$3,\"\")","v":""},null,null,null,null,{"$f":"+IF(G13<>\"\",$C$3,\"\")","v":""},null,null,null,null,null,null,null,null,null,null,null,null,null,null,null,null,null,null,null,null,null,null,null,null,null,null,null,null,null,null,null,null,null,null,null,null,null,null,null,null,null,null,null,"",0,null,null,""]
[null,null,"",null,null,null,null,"",null,null,null,null,null,null,null,null,null,null,null,null,null,null,null,null,null,null,null,null,null,null,null,null,null,null,null,null,null,null,null,null,null,null,null,null,null,null,null,null,null,null,null,"",0,null,null,""]
[null,null,"",null,null,null,null,"",null,null,null,null,null,null,null,null,null,null,null,null,null,null,null,null,null,null,null,null,null,null,null,null,null,null,null,null,null,null,null,null,null,null,null,null,null,null,null,null,null,null,null,{"$f":"IF(BA15<>0,$C$3,\"\")","v":""},0,null,null,""]
[null,null,"",null,null,null,null,"",null,null,null,null,null,null,null,null,null,null,null,null,null,null,null,null,null,null,null,null,null,null,null,null,null,null,null,null,null,null,null,null,null,null,null,null,null,null,null,null,null,null,null,{"$f":"IF(BA16<>0,$C$3,\"\")","v":""},0,null,null,""]
[null,null,"",null,null,null,null,"",null,null,null,null,null,null,null,null,null,null,null,null,null,null,null,null,null,null,null,null,null,null,null,null,null,null,null,null,null,null,null,null,null,null,null,null,null,null,null,null,null,null,null,"",0,null,null,""]
[null,null,"",null,null,null,null,"",null,null,null,null,null,null,null,null,null,null,null,null,null,null,null,null,null,null,null,null,null,null,null,null,null,null,null,null,null,null,null,null,null,null,null,null,null,null,null,null,null,null,null,"",0,null,null,""]
[null,null,"",null,null,null,null,"",null,null,null,null,null,null,null,null,null,null,null,null,null,null,null,null,null,null,null,null,null,null,null,null,null,null,null,null,null,null,null,null,null,null,null,null,null,null,null,null,null,null,null,"",0,null,null,""]
[null,null,"",null,null,null,null,"",null,null,null,null,null,null,null,null,null,null,null,null,null,null,null,null,null,null,null,null,null,null,null,null,null,null,null,null,null,null,null,null,null,null,null,null,null,null,null,null,null,null,null,"",0,null,null,""]
[null,null,"",null,null,null,null,"",null,null,null,null,null,null,null,null,null,null,null,null,null,null,null,null,null,null,null,null,null,null,null,null,null,null,null,null,null,null,null,null,null,null,null,null,null,null,null,null,null,null,null,"",0,null,null,""]
[null,null,"",null,null,null,null,"",null,null,null,null,null,null,null,null,null,null,null,null,null,null,null,null,null,null,null,null,null,null,null,null,null,null,null,null,null,null,null,null,null,null,null,null,null,null,null,null,null,null,null,"",0,null,null,""]
[null,null,"",null,null,null,null,"",null,null,null,null,null,null,null,null,null,null,null,null,null,null,null,null,null,null,null,null,null,null,null,null,null,null,null,null,null,null,null,null,null,null,null,null,null,null,null,null,null,null,null,"",0,null,null,""]
[null,null,"",null,null,null,null,"",null,null,null,null,null,null,null,null,null,null,null,null,null,null,null,null,null,null,null,null,null,null,null,null,null,null,null,null,null,null,null,null,null,null,null,null,null,null,null,null,null,null,null,"",0,null,null,""]
[null,null,"",null,null,null,null,"",null,null,null,null,null,null,null,null,null,null,null,null,null,null,null,null,null,null,null,null,null,null,null,null,null,null,null,null,null,null,null,null,null,null,null,null,null,null,null,null,null,null,null,"",0,null,null,""]
[null,null,"",null,null,null,null,"",null,null,null,null,null,null,null,null,null,null,null,null,null,null,null,null,null,null,null,null,null,null,null,null,null,null,null,null,null,null,null,null,null,null,null,null,null,null,null,null,null,null,null,"",0,null,null,""]
[null,null,"",null,null,null,null,"",null,null,null,null,null,null,null,null,null,null,null,null,null,null,null,null,null,null,null,null,null,null,null,null,null,null,null,null,null,null,null,null,null,null,null,null,null,null,null,null,null,null,null,"",0,null,null,""]
[null,null,"",null,null,null,null,"",null,null,null,null,null,null,null,null,null,null,null,null,null,null,null,null,null,null,null,null,null,null,null,null,null,null,null,null,null,null,null,null,null,null,null,null,null,null,null,null,null,null,null,"",0,null,null,""]
[null,null,"",null,null,null,null,"",null,null,null,null,null,null,null,null,null,null,null,null,null,null,null,null,null,null,null,null,null,null,null,null,null,null,null,null,null,null,null,null,null,null,null,null,null,null,null,null,null,null,null,"",0,null,null,""]
[null,null,"",null,null,null,null,"",null,null,null,null,null,null,null,null,null,null,null,null,null,null,null,null,null,null,null,null,null,null,null,null,null,null,null,null,null,null,null,null,null,null,null,null,null,null,null,null,null,null,null,"",0,null,null,""]
[null,null,"",null,null,null,null,"",null,null,null,null,null,null,null,null,null,null,null,null,null,null,null,null,null,null,null,null,null,null,null,null,null,null,null,null,null,null,null,null,null,null,null,null,null,null,null,null,null,null,null,"",0,null,null,""]
[null,null,"",null,null,null,null,"",null,null,null,null,null,null,null,null,null,null,null,null,null,null,null,null,null,null,null,null,null,null,null,null,null,null,null,null,null,null,null,null,null,null,null,null,null,null,null,null,null,null,null,"",0,null,null,""]
[null,null,"",null,null,null,null,"",null,null,null,null,null,null,null,null,null,null,null,null,null,null,null,null,null,null,null,null,null,null,null,null,null,null,null,null,null,null,null,null,null,null,null,null,null,null,null,null,null,null,null,"",0,null,null,""]
[null,null,"",null,null,null,null,"",null,null,null,null,null,null,null,null,null,null,null,null,null,null,null,null,null,null,null,null,null,null,null,null,null,null,null,null,null,null,null,null,null,null,null,null,null,null,null,null,null,null,null,"",0,null,null,""]
[null,null,"",null,null,null,null,"",null,null,null,null,null,null,null,null,null,null,null,null,null,null,null,null,null,null,null,null,null,null,null,null,null,null,null,null,null,null,null,null,null,null,null,null,null,null,null,null,null,null,null,"",0,null,null,""]
[null,null,"",null,null,null,null,"",null,null,null,null,null,null,null,null,null,null,null,null,null,null,null,null,null,null,null,null,null,null,null,null,null,null,null,null,null,null,null,null,null,null,null,null,null,null,null,null,null,null,null,"",0,null,null,""]
[null,null,"",null,null,null,null,"",null,null,null,null,null,null,null,null,null,null,null,null,null,null,null,null,null,null,null,null,null,null,null,null,null,null,null,null,null,null,null,null,null,null,null,null,null,null,null,null,null,null,null,"",0,null,null,""]
[null,null,"",null,null,null,null,"",null,null,null,null,null,null,null,null,null,null,null,null,null,null,null,null,null,null,null,null,null,null,null,null,null,null,null,null,null,null,null,null,null,null,null,null,null,null,null,null,null,null,null,"",0,null,null,""]
[null,null,"",null,null,null,null,"",null,null,null,null,null,null,null,null,null,null,null,null,null,null,null,null,null,null,null,null,null,null,null,null,null,null,null,null,null,null,null,null,null,null,null,null,null,null,null,null,null,null,null,"",0,null,null,""]
[null,null,"",null,null,null,null,"",null,null,null,null,null,null,null,null,null,null,null,null,null,null,null,null,null,null,null,null,null,null,null,null,null,null,null,null,null,null,null,null,null,null,null,null,null,null,null,null,null,null,null,"",0,null,null,""]
[null,"TOTAL",{"$f":"C3","v":"$"},{"$f":"SUM(D11:D40)","v":0},null,null,null,null,null,null,null,null,null,null,null,null,null,null,null,null,null,null,null,null,null,null,null,null,null,null,null,null,null,null,null,null,null,null,null,null,null,null,null,null,null,null,null,null,"TOTAL",null,null,{"$f":"C3","v":"$"},{"$f":"SUM(BA11:BA40)","v":0},null,"TOTAL",{"$f":"C3","v":"$"},{"$f":"SUM(BE11:BE40)","v":0}]

{"sheet":"February","index":2,"n_rows":41,"n_cols":57,"rows_kept":41,"cut":false,"hidden":false,"merged":[[4,5,5,6],[0,0,0,1],[2,1,3,1],[2,2,3,3],[4,1,5,1],[4,2,5,3],[40,48,40,50],[4,7,5,7],[4,8,5,10],[4,43,5,48],[4,49,5,49],[4,50,5,52],[7,37,7,50],[7,9,7,36],[8,1,8,3],[8,5,8,8],[8,54,8,56]]}
[]
[]
[null,"Currency","$"]
[]
[null,"Payday Week","(Week 1) 1 Feb - 7 Feb 2021",null,null,"INCOME TOTAL",null,{"$f":"C3","v":"$"},{"$f":"D41","v":0},null,null,null,null,null,null,null,null,null,null,null,null,null,null,null,null,null,null,null,null,null,null,null,null,null,null,null,null,null,null,null,null,null,null,"INCOME BALANCE",null,null,null,null,null,{"$f":"C3","v":"$"},{"$f":"D41-BA41","v":0}]
[]
[]
[null,null,null,null,null,null,null,null,null,"Feb",null,null,null,null,null,null,null,null,null,null,null,null,null,null,null,null,null,null,null,null,null,null,null,null,null,null,null,"Mar"]
[null,"Income Table",null,null,null,"Main Table",null,null,null,1,2,3,4,5,6,7,8,9,10,11,12,13,14,15,16,17,18,19,20,21,22,23,24,25,26,27,28,1,2,3,4,5,6,7,8,9,10,11,12,13,14,null,null,null,"Pocket Balance Table"]
[null,"Income",null,"Value",null,"Category","Expense",null,"Budget","M","T","W","T","F","S","S","M","T","W","T","F","S","S","M","T","W","T","F","S","S","M","T","W","T","F","S","S","M","T","W","T","F","S","S","M","T","W","T","F","S","S",null,"Sum",null,"Balance",null,"Value"]
[null,null,{"$f":"IF(B11<>\"\", $C$3,\"\")","v":""},null,null,null,null,{"$f":"+IF(G11<>\"\",$C$3,\"\")","v":""},null,null,null,null,null,null,null,null,null,null,null,null,null,null,null,null,null,null,null,null,null,null,null,null,null,null,null,null,null,null,null,null,null,null,null,null,null,null,null,null,null,null,null,{"$f":"IF(BA11<>0,$C$3,\"\")","v":""},{"$f":"SUM(J11:AY11)","v":0},null,null,{"$f":"IF(BC11<>\"\",$C$3,\"\")","v":""}]
[null,null,{"$f":"IF(B12<>\"\", $C$3,\"\")","v":""},null,null,null,null,{"$f":"+IF(G12<>\"\",$C$3,\"\")","v":""},null,null,null,null,null,null,null,null,null,null,null,null,null,null,null,null,null,null,null,null,null,null,null,null,null,null,null,null,null,null,null,null,null,null,null,null,null,null,null,null,null,null,null,{"$f":"IF(BA12<>0,$C$3,\"\")","v":""},{"$f":"SUM(J12:AY12)","v":0},null,null,{"$f":"IF(BC12<>\"\",$C$3,\"\")","v":""}]
[null,null,{"$f":"IF(B13<>\"\", $C$3,\"\")","v":""},null,null,null,null,{"$f":"+IF(G13<>\"\",$C$3,\"\")","v":""},null,null,null,null,null,null,null,null,null,null,null,null,null,null,null,null,null,null,null,null,null,null,null,null,null,null,null,null,null,null,null,null,null,null,null,null,null,null,null,null,null,null,null,"",0,null,null,""]
[null,null,"",null,null,null,null,"",null,null,null,null,null,null,null,null,null,null,null,null,null,null,null,null,null,null,null,null,null,null,null,null,null,null,null,null,null,null,null,null,null,null,null,null,null,null,null,null,null,null,null,"",0,null,null,""]
[null,null,"",null,null,null,null,"",null,null,null,null,null,null,null,null,null,null,null,null,null,null,null,null,null,null,null,null,null,null,null,null,null,null,null,null,null,null,null,null,null,null,null,null,null,null,null,null,null,null,null,{"$f":"IF(BA15<>0,$C$3,\"\")","v":""},0,null,null,""]
[null,null,"",null,null,null,null,"",null,null,null,null,null,null,null,null,null,null,null,null,null,null,null,null,null,null,null,null,null,null,null,null,null,null,null,null,null,null,null,null,null,null,null,null,null,null,null,null,null,null,null,{"$f":"IF(BA16<>0,$C$3,\"\")","v":""},0,null,null,""]
[null,null,"",null,null,null,null,"",null,null,null,null,null,null,null,null,null,null,null,null,null,null,null,null,null,null,null,null,null,null,null,null,null,null,null,null,null,null,null,null,null,null,null,null,null,null,null,null,null,null,null,"",0,null,null,""]
[null,null,"",null,null,null,null,"",null,null,null,null,null,null,null,null,null,null,null,null,null,null,null,null,null,null,null,null,null,null,null,null,null,null,null,null,null,null,null,null,null,null,null,null,null,null,null,null,null,null,null,"",0,null,null,""]
[null,null,"",null,null,null,null,"",null,null,null,null,null,null,null,null,null,null,null,null,null,null,null,null,null,null,null,null,null,null,null,null,null,null,null,null,null,null,null,null,null,null,null,null,null,null,null,null,null,null,null,"",0,null,null,""]
[null,null,"",null,null,null,null,"",null,null,null,null,null,null,null,null,null,null,null,null,null,null,null,null,null,null,null,null,null,null,null,null,null,null,null,null,null,null,null,null,null,null,null,null,null,null,null,null,null,null,null,"",0,null,null,""]
[null,null,"",null,null,null,null,"",null,null,null,null,null,null,null,null,null,null,null,null,null,null,null,null,null,null,null,null,null,null,null,null,null,null,null,null,null,null,null,null,null,null,null,null,null,null,null,null,null,null,null,"",0,null,null,""]
[null,null,"",null,null,null,null,"",null,null,null,null,null,null,null,null,null,null,null,null,null,null,null,null,null,null,null,null,null,null,null,null,null,null,null,null,null,null,null,null,null,null,null,null,null,null,null,null,null,null,null,"",0,null,null,""]
[null,null,"",null,null,null,null,"",null,null,null,null,null,null,null,null,null,null,null,null,null,null,null,null,null,null,null,null,null,null,null,null,null,null,null,null,null,null,null,null,null,null,null,null,null,null,null,null,null,null,null,"",0,null,null,""]
[null,null,"",null,null,null,null,"",null,null,null,null,null,null,null,null,null,null,null,null,null,null,null,null,null,null,null,null,null,null,null,null,null,null,null,null,null,null,null,null,null,null,null,null,null,null,null,null,null,null,null,"",0,null,null,""]
[null,null,"",null,null,null,null,"",null,null,null,null,null,null,null,null,null,null,null,null,null,null,null,null,null,null,null,null,null,null,null,null,null,null,null,null,null,null,null,null,null,null,null,null,null,null,null,null,null,null,null,"",0,null,null,""]
[null,null,"",null,null,null,null,"",null,null,null,null,null,null,null,null,null,null,null,null,null,null,null,null,null,null,null,null,null,null,null,null,null,null,null,null,null,null,null,null,null,null,null,null,null,null,null,null,null,null,null,"",0,null,null,""]
[null,null,"",null,null,null,null,"",null,null,null,null,null,null,null,null,null,null,null,null,null,null,null,null,null,null,null,null,null,null,null,null,null,null,null,null,null,null,null,null,null,null,null,null,null,null,null,null,null,null,null,"",0,null,null,""]
[null,null,"",null,null,null,null,"",null,null,null,null,null,null,null,null,null,null,null,null,null,null,null,null,null,null,null,null,null,null,null,null,null,null,null,null,null,null,null,null,null,null,null,null,null,null,null,null,null,null,null,"",0,null,null,""]
[null,null,"",null,null,null,null,"",null,null,null,null,null,null,null,null,null,null,null,null,null,null,null,null,null,null,null,null,null,null,null,null,null,null,null,null,null,null,null,null,null,null,null,null,null,null,null,null,null,null,null,"",0,null,null,""]
[null,null,"",null,null,null,null,"",null,null,null,null,null,null,null,null,null,null,null,null,null,null,null,null,null,null,null,null,null,null,null,null,null,null,null,null,null,null,null,null,null,null,null,null,null,null,null,null,null,null,null,"",0,null,null,""]
[null,null,"",null,null,null,null,"",null,null,null,null,null,null,null,null,null,null,null,null,null,null,null,null,null,null,null,null,null,null,null,null,null,null,null,null,null,null,null,null,null,null,null,null,null,null,null,null,null,null,null,"",0,null,null,""]
[null,null,"",null,null,null,null,"",null,null,null,null,null,null,null,null,null,null,null,null,null,null,null,null,null,null,null,null,null,null,null,null,null,null,null,null,null,null,null,null,null,null,null,null,null,null,null,null,null,null,null,"",0,null,null,""]
[null,null,"",null,null,null,null,"",null,null,null,null,null,null,null,null,null,null,null,null,null,null,null,null,null,null,null,null,null,null,null,null,null,null,null,null,null,null,null,null,null,null,null,null,null,null,null,null,null,null,null,"",0,null,null,""]
[null,null,"",null,null,null,null,"",null,null,null,null,null,null,null,null,null,null,null,null,null,null,null,null,null,null,null,null,null,null,null,null,null,null,null,null,null,null,null,null,null,null,null,null,null,null,null,null,null,null,null,"",0,null,null,""]
[null,null,"",null,null,null,null,"",null,null,null,null,null,null,null,null,null,null,null,null,null,null,null,null,null,null,null,null,null,null,null,null,null,null,null,null,null,null,null,null,null,null,null,null,null,null,null,null,null,null,null,"",0,null,null,""]
[null,null,"",null,null,null,null,"",null,null,null,null,null,null,null,null,null,null,null,null,null,null,null,null,null,null,null,null,null,null,null,null,null,null,null,null,null,null,null,null,null,null,null,null,null,null,null,null,null,null,null,"",0,null,null,""]
[null,null,"",null,null,null,null,"",null,null,null,null,null,null,null,null,null,null,null,null,null,null,null,null,null,null,null,null,null,null,null,null,null,null,null,null,null,null,null,null,null,null,null,null,null,null,null,null,null,null,null,"",0,null,null,""]
[null,null,"",null,null,null,null,"",null,null,null,null,null,null,null,null,null,null,null,null,null,null,null,null,null,null,null,null,null,null,null,null,null,null,null,null,null,null,null,null,null,null,null,null,null,null,null,null,null,null,null,"",0,null,null,""]
[null,null,"",null,null,null,null,"",null,null,null,null,null,null,null,null,null,null,null,null,null,null,null,null,null,null,null,null,null,null,null,null,null,null,null,null,null,null,null,null,null,null,null,null,null,null,null,null,null,null,null,"",0,null,null,""]
[null,null,"",null,null,null,null,"",null,null,null,null,null,null,null,null,null,null,null,null,null,null,null,null,null,null,null,null,null,null,null,null,null,null,null,null,null,null,null,null,null,null,null,null,null,null,null,null,null,null,null,"",0,null,null,""]
[null,"TOTAL",{"$f":"C3","v":"$"},{"$f":"SUM(D11:D40)","v":0},null,null,null,null,null,null,null,null,null,null,null,null,null,null,null,null,null,null,null,null,null,null,null,null,null,null,null,null,null,null,null,null,null,null,null,null,null,null,null,null,null,null,null,null,"TOTAL",null,null,{"$f":"C3","v":"$"},{"$f":"SUM(BA11:BA40)","v":0},null,"TOTAL",{"$f":"C3","v":"$"},{"$f":"SUM(BE11:BE40)","v":0}]

{"sheet":"March","index":3,"n_rows":41,"n_cols":57,"rows_kept":41,"cut":false,"hidden":false,"merged":[[4,5,5,6],[0,0,0,1],[2,1,3,1],[2,2,3,3],[4,1,5,1],[4,2,5,3],[4,7,5,7],[4,8,5,10],[4,43,5,48],[4,49,5,49],[4,50,5,52],[7,40,7,50],[8,1,8,3],[8,5,8,8],[8,54,8,56],[40,48,40,50],[7,9,7,39]]}
[]
[]
[null,"Currency","$"]
[]
[null,"Payday Week","(Week 1) 1 Mar - 7 Mar 2021",null,null,"INCOME TOTAL",null,{"$f":"C3","v":"$"},{"$f":"D41","v":0},null,null,null,null,null,null,null,null,null,null,null,null,null,null,null,null,null,null,null,null,null,null,null,null,null,null,null,null,null,null,null,null,null,null,"INCOME BALANCE",null,null,null,null,null,{"$f":"C3","v":"$"},{"$f":"D41-BA41","v":0}]
[]
[]
[null,null,null,null,null,null,null,null,null,"Mar",null,null,null,null,null,null,null,null,null,null,null,null,null,null,null,null,null,null,null,null,null,null,null,null,null,null,null,null,null,null,"Apr"]
[null,"Income Table",null,null,null,"Main Table",null,null,null,1,2,3,4,5,6,7,8,9,10,11,12,13,14,15,16,17,18,19,20,21,22,23,24,25,26,27,28,29,30,31,1,2,3,4,5,6,7,8,9,10,11,null,null,null,"Pocket Balance Table"]
[null,"Income",null,"Value",null,"Category","Expense",null,"Budget","M","T","W","T","F","S","S","M","T","W","T","F","S","S","M","T","W","T","F","S","S","M","T","W","T","F","S","S","M","T","W","T","F","S","S","M","T","W","T","F","S","S",null,"Sum",null,"Balance",null,"Value"]
[null,null,{"$f":"IF(B11<>\"\", $C$3,\"\")","v":""},null,null,null,null,{"$f":"+IF(G11<>\"\",$C$3,\"\")","v":""},null,null,null,null,null,null,null,null,null,null,null,null,null,null,null,null,null,null,null,null,null,null,null,null,null,null,null,null,null,null,null,null,null,null,null,null,null,null,null,null,null,null,null,{"$f":"IF(BA11<>0,$C$3,\"\")","v":""},{"$f":"SUM(J11:AY11)","v":0},null,null,{"$f":"IF(BC11<>\"\",$C$3,\"\")","v":""}]
[null,null,{"$f":"IF(B12<>\"\", $C$3,\"\")","v":""},null,null,null,null,{"$f":"+IF(G12<>\"\",$C$3,\"\")","v":""},null,null,null,null,null,null,null,null,null,null,null,null,null,null,null,null,null,null,null,null,null,null,null,null,null,null,null,null,null,null,null,null,null,null,null,null,null,null,null,null,null,null,null,{"$f":"IF(BA12<>0,$C$3,\"\")","v":""},{"$f":"SUM(J12:AY12)","v":0},null,null,{"$f":"IF(BC12<>\"\",$C$3,\"\")","v":""}]
[null,null,{"$f":"IF(B13<>\"\", $C$3,\"\")","v":""},null,null,null,null,{"$f":"+IF(G13<>\"\",$C$3,\"\")","v":""},null,null,null,null,null,null,null,null,null,null,null,null,null,null,null,null,null,null,null,null,null,null,null,null,null,null,null,null,null,null,null,null,null,null,null,null,null,null,null,null,null,null,null,"",0,null,null,""]
[null,null,"",null,null,null,null,"",null,null,null,null,null,null,null,null,null,null,null,null,null,null,null,null,null,null,null,null,null,null,null,null,null,null,null,null,null,null,null,null,null,null,null,null,null,null,null,null,null,null,null,"",0,null,null,""]
[null,null,"",null,null,null,null,"",null,null,null,null,null,null,null,null,null,null,null,null,null,null,null,null,null,null,null,null,null,null,null,null,null,null,null,null,null,null,null,null,null,null,null,null,null,null,null,null,null,null,null,{"$f":"IF(BA15<>0,$C$3,\"\")","v":""},0,null,null,""]
[null,null,"",null,null,null,null,"",null,null,null,null,null,null,null,null,null,null,null,null,null,null,null,null,null,null,null,null,null,null,null,null,null,null,null,null,null,null,null,null,null,null,null,null,null,null,null,null,null,null,null,{"$f":"IF(BA16<>0,$C$3,\"\")","v":""},0,null,null,""]
[null,null,"",null,null,null,null,"",null,null,null,null,null,null,null,null,null,null,null,null,null,null,null,null,null,null,null,null,null,null,null,null,null,null,null,null,null,null,null,null,null,null,null,null,null,null,null,null,null,null,null,"",0,null,null,""]
[null,null,"",null,null,null,null,"",null,null,null,null,null,null,null,null,null,null,null,null,null,null,null,null,null,null,null,null,null,null,null,null,null,null,null,null,null,null,null,null,null,null,null,null,null,null,null,null,null,null,null,"",0,null,null,""]
[null,null,"",null,null,null,null,"",null,null,null,null,null,null,null,null,null,null,null,null,null,null,null,null,null,null,null,null,null,null,null,null,null,null,null,null,null,null,null,null,null,null,null,null,null,null,null,null,null,null,null,"",0,null,null,""]
[null,null,"",null,null,null,null,"",null,null,null,null,null,null,null,null,null,null,null,null,null,null,null,null,null,null,null,null,null,null,null,null,null,null,null,null,null,null,null,null,null,null,null,null,null,null,null,null,null,null,null,"",0,null,null,""]
[null,null,"",null,null,null,null,"",null,null,null,null,null,null,null,null,null,null,null,null,null,null,null,null,null,null,null,null,null,null,null,null,null,null,null,null,null,null,null,null,null,null,null,null,null,null,null,null,null,null,null,"",0,null,null,""]
[null,null,"",null,null,null,null,"",null,null,null,null,null,null,null,null,null,null,null,null,null,null,null,null,null,null,null,null,null,null,null,null,null,null,null,null,null,null,null,null,null,null,null,null,null,null,null,null,null,null,null,"",0,null,null,""]
[null,null,"",null,null,null,null,"",null,null,null,null,null,null,null,null,null,null,null,null,null,null,null,null,null,null,null,null,null,null,null,null,null,null,null,null,null,null,null,null,null,null,null,null,null,null,null,null,null,null,null,"",0,null,null,""]
[null,null,"",null,null,null,null,"",null,null,null,null,null,null,null,null,null,null,null,null,null,null,null,null,null,null,null,null,null,null,null,null,null,null,null,null,null,null,null,null,null,null,null,null,null,null,null,null,null,null,null,"",0,null,null,""]
[null,null,"",null,null,null,null,"",null,null,null,null,null,null,null,null,null,null,null,null,null,null,null,null,null,null,null,null,null,null,null,null,null,null,null,null,null,null,null,null,null,null,null,null,null,null,null,null,null,null,null,"",0,null,null,""]
[null,null,"",null,null,null,null,"",null,null,null,null,null,null,null,null,null,null,null,null,null,null,null,null,null,null,null,null,null,null,null,null,null,null,null,null,null,null,null,null,null,null,null,null,null,null,null,null,null,null,null,"",0,null,null,""]
[null,null,"",null,null,null,null,"",null,null,null,null,null,null,null,null,null,null,null,null,null,null,null,null,null,null,null,null,null,null,null,null,null,null,null,null,null,null,null,null,null,null,null,null,null,null,null,null,null,null,null,"",0,null,null,""]
[null,null,"",null,null,null,null,"",null,null,null,null,null,null,null,null,null,null,null,null,null,null,null,null,null,null,null,null,null,null,null,null,null,null,null,null,null,null,null,null,null,null,null,null,null,null,null,null,null,null,null,"",0,null,null,""]
[null,null,"",null,null,null,null,"",null,null,null,null,null,null,null,null,null,null,null,null,null,null,null,null,null,null,null,null,null,null,null,null,null,null,null,null,null,null,null,null,null,null,null,null,null,null,null,null,null,null,null,"",0,null,null,""]
[null,null,"",null,null,null,null,"",null,null,null,null,null,null,null,null,null,null,null,null,null,null,null,null,null,null,null,null,null,null,null,null,null,null,null,null,null,null,null,null,null,null,null,null,null,null,null,null,null,null,null,"",0,null,null,""]
[null,null,"",null,null,null,null,"",null,null,null,null,null,null,null,null,null,null,null,null,null,null,null,null,null,null,null,null,null,null,null,null,null,null,null,null,null,null,null,null,null,null,null,null,null,null,null,null,null,null,null,"",0,null,null,""]
[null,null,"",null,null,null,null,"",null,null,null,null,null,null,null,null,null,null,null,null,null,null,null,null,null,null,null,null,null,null,null,null,null,null,null,null,null,null,null,null,null,null,null,null,null,null,null,null,null,null,null,"",0,null,null,""]
[null,null,"",null,null,null,null,"",null,null,null,null,null,null,null,null,null,null,null,null,null,null,null,null,null,null,null,null,null,null,null,null,null,null,null,null,null,null,null,null,null,null,null,null,null,null,null,null,null,null,null,"",0,null,null,""]
[null,null,"",null,null,null,null,"",null,null,null,null,null,null,null,null,null,null,null,null,null,null,null,null,null,null,null,null,null,null,null,null,null,null,null,null,null,null,null,null,null,null,null,null,null,null,null,null,null,null,null,"",0,null,null,""]
[null,null,"",null,null,null,null,"",null,null,null,null,null,null,null,null,null,null,null,null,null,null,null,null,null,null,null,null,null,null,null,null,null,null,null,null,null,null,null,null,null,null,null,null,null,null,null,null,null,null,null,"",0,null,null,""]
[null,null,"",null,null,null,null,"",null,null,null,null,null,null,null,null,null,null,null,null,null,null,null,null,null,null,null,null,null,null,null,null,null,null,null,null,null,null,null,null,null,null,null,null,null,null,null,null,null,null,null,"",0,null,null,""]
[null,null,"",null,null,null,null,"",null,null,null,null,null,null,null,null,null,null,null,null,null,null,null,null,null,null,null,null,null,null,null,null,null,null,null,null,null,null,null,null,null,null,null,null,null,null,null,null,null,null,null,"",0,null,null,""]
[null,null,"",null,null,null,null,"",null,null,null,null,null,null,null,null,null,null,null,null,null,null,null,null,null,null,null,null,null,null,null,null,null,null,null,null,null,null,null,null,null,null,null,null,null,null,null,null,null,null,null,"",0,null,null,""]
[null,null,"",null,null,null,null,"",null,null,null,null,null,null,null,null,null,null,null,null,null,null,null,null,null,null,null,null,null,null,null,null,null,null,null,null,null,null,null,null,null,null,null,null,null,null,null,null,null,null,null,"",0,null,null,""]
[null,null,"",null,null,null,null,"",null,null,null,null,null,null,null,null,null,null,null,null,null,null,null,null,null,null,null,null,null,null,null,null,null,null,null,null,null,null,null,null,null,null,null,null,null,null,null,null,null,null,null,"",0,null,null,""]
[null,"TOTAL",{"$f":"C3","v":"$"},{"$f":"SUM(D11:D40)","v":0},null,null,null,null,null,null,null,null,null,null,null,null,null,null,null,null,null,null,null,null,null,null,null,null,null,null,null,null,null,null,null,null,null,null,null,null,null,null,null,null,null,null,null,null,"TOTAL",null,null,{"$f":"C3","v":"$"},{"$f":"SUM(BA11:BA40)","v":0},null,"TOTAL",{"$f":"C3","v":"$"},{"$f":"SUM(BE11:BE40)","v":0}]

{"sheet":"April","index":4,"n_rows":41,"n_cols":57,"rows_kept":41,"cut":false,"hidden":false,"merged":[[4,5,5,6],[0,0,0,1],[2,1,3,1],[2,2,3,3],[4,1,5,1],[4,2,5,3],[4,7,5,7],[4,8,5,10],[4,43,5,48],[4,49,5,49],[4,50,5,52],[8,1,8,3],[8,5,8,8],[8,54,8,56],[40,48,40,50],[7,9,7,11],[7,12,7,41],[7,42,7,50]]}
[]
[]
[null,"Currency","$"]
[]
[null,"Payday Week","(Week 1) 29 Mar - 4 Apr 2021",null,null,"INCOME TOTAL",null,{"$f":"C3","v":"$"},{"$f":"D41","v":0},null,null,null,null,null,null,null,null,null,null,null,null,null,null,null,null,null,null,null,null,null,null,null,null,null,null,null,null,null,null,null,null,null,null,"INCOME BALANCE",null,null,null,null,null,{"$f":"C3","v":"$"},{"$f":"D41-BA41","v":0}]
[]
[]
[null,null,null,null,null,null,null,null,null,"Mar",null,null,"Apr",null,null,null,null,null,null,null,null,null,null,null,null,null,null,null,null,null,null,null,null,null,null,null,null,null,null,null,null,null,"May"]
[null,"Income Table",null,null,null,"Main Table",null,null,null,29,30,31,1,2,3,4,5,6,7,8,9,10,11,12,13,14,15,16,17,18,19,20,21,22,23,24,25,26,27,28,29,30,1,2,3,4,5,6,7,8,9,null,null,null,"Pocket Balance Table"]
[null,"Income",null,"Value",null,"Category","Expense",null,"Budget","M","T","W","T","F","S","S","M","T","W","T","F","S","S","M","T","W","T","F","S","S","M","T","W","T","F","S","S","M","T","W","T","F","S","S","M","T","W","T","F","S","S",null,"Sum",null,"Balance",null,"Value"]
[null,null,{"$f":"IF(B11<>\"\", $C$3,\"\")","v":""},null,null,null,null,{"$f":"+IF(G11<>\"\",$C$3,\"\")","v":""},null,null,null,null,null,null,null,null,null,null,null,null,null,null,null,null,null,null,null,null,null,null,null,null,null,null,null,null,null,null,null,null,null,null,null,null,null,null,null,null,null,null,null,{"$f":"IF(BA11<>0,$C$3,\"\")","v":""},{"$f":"SUM(J11:AY11)","v":0},null,null,{"$f":"IF(BC11<>\"\",$C$3,\"\")","v":""}]
[null,null,{"$f":"IF(B12<>\"\", $C$3,\"\")","v":""},null,null,null,null,{"$f":"+IF(G12<>\"\",$C$3,\"\")","v":""},null,null,null,null,null,null,null,null,null,null,null,null,null,null,null,null,null,null,null,null,null,null,null,null,null,null,null,null,null,null,null,null,null,null,null,null,null,null,null,null,null,null,null,{"$f":"IF(BA12<>0,$C$3,\"\")","v":""},{"$f":"SUM(J12:AY12)","v":0},null,null,{"$f":"IF(BC12<>\"\",$C$3,\"\")","v":""}]
[null,null,{"$f":"IF(B13<>\"\", $C$3,\"\")","v":""},null,null,null,null,{"$f":"+IF(G13<>\"\",$C$3,\"\")","v":""},null,null,null,null,null,null,null,null,null,null,null,null,null,null,null,null,null,null,null,null,null,null,null,null,null,null,null,null,null,null,null,null,null,null,null,null,null,null,null,null,null,null,null,"",0,null,null,""]
[null,null,"",null,null,null,null,"",null,null,null,null,null,null,null,null,null,null,null,null,null,null,null,null,null,null,null,null,null,null,null,null,null,null,null,null,null,null,null,null,null,null,null,null,null,null,null,null,null,null,null,"",0,null,null,""]
[null,null,"",null,null,null,null,"",null,null,null,null,null,null,null,null,null,null,null,null,null,null,null,null,null,null,null,null,null,null,null,null,null,null,null,null,null,null,null,null,null,null,null,null,null,null,null,null,null,null,null,{"$f":"IF(BA15<>0,$C$3,\"\")","v":""},0,null,null,""]
[null,null,"",null,null,null,null,"",null,null,null,null,null,null,null,null,null,null,null,null,null,null,null,null,null,null,null,null,null,null,null,null,null,null,null,null,null,null,null,null,null,null,null,null,null,null,null,null,null,null,null,{"$f":"IF(BA16<>0,$C$3,\"\")","v":""},0,null,null,""]
[null,null,"",null,null,null,null,"",null,null,null,null,null,null,null,null,null,null,null,null,null,null,null,null,null,null,null,null,null,null,null,null,null,null,null,null,null,null,null,null,null,null,null,null,null,null,null,null,null,null,null,"",0,null,null,""]
[null,null,"",null,null,null,null,"",null,null,null,null,null,null,null,null,null,null,null,null,null,null,null,null,null,null,null,null,null,null,null,null,null,null,null,null,null,null,null,null,null,null,null,null,null,null,null,null,null,null,null,"",0,null,null,""]
[null,null,"",null,null,null,null,"",null,null,null,null,null,null,null,null,null,null,null,null,null,null,null,null,null,null,null,null,null,null,null,null,null,null,null,null,null,null,null,null,null,null,null,null,null,null,null,null,null,null,null,"",0,null,null,""]
[null,null,"",null,null,null,null,"",null,null,null,null,null,null,null,null,null,null,null,null,null,null,null,null,null,null,null,null,null,null,null,null,null,null,null,null,null,null,null,null,null,null,null,null,null,null,null,null,null,null,null,"",0,null,null,""]
[null,null,"",null,null,null,null,"",null,null,null,null,null,null,null,null,null,null,null,null,null,null,null,null,null,null,null,null,null,null,null,null,null,null,null,null,null,null,null,null,null,null,null,null,null,null,null,null,null,null,null,"",0,null,null,""]
[null,null,"",null,null,null,null,"",null,null,null,null,null,null,null,null,null,null,null,null,null,null,null,null,null,null,null,null,null,null,null,null,null,null,null,null,null,null,null,null,null,null,null,null,null,null,null,null,null,null,null,"",0,null,null,""]
[null,null,"",null,null,null,null,"",null,null,null,null,null,null,null,null,null,null,null,null,null,null,null,null,null,null,null,null,null,null,null,null,null,null,null,null,null,null,null,null,null,null,null,null,null,null,null,null,null,null,null,"",0,null,null,""]
[null,null,"",null,null,null,null,"",null,null,null,null,null,null,null,null,null,null,null,null,null,null,null,null,null,null,null,null,null,null,null,null,null,null,null,null,null,null,null,null,null,null,null,null,null,null,null,null,null,null,null,"",0,null,null,""]
[null,null,"",null,null,null,null,"",null,null,null,null,null,null,null,null,null,null,null,null,null,null,null,null,null,null,null,null,null,null,null,null,null,null,null,null,null,null,null,null,null,null,null,null,null,null,null,null,null,null,null,"",0,null,null,""]
[null,null,"",null,null,null,null,"",null,null,null,null,null,null,null,null,null,null,null,null,null,null,null,null,null,null,null,null,null,null,null,null,null,null,null,null,null,null,null,null,null,null,null,null,null,null,null,null,null,null,null,"",0,null,null,""]
[null,null,"",null,null,null,null,"",null,null,null,null,null,null,null,null,null,null,null,null,null,null,null,null,null,null,null,null,null,null,null,null,null,null,null,null,null,null,null,null,null,null,null,null,null,null,null,null,null,null,null,"",0,null,null,""]
[null,null,"",null,null,null,null,"",null,null,null,null,null,null,null,null,null,null,null,null,null,null,null,null,null,null,null,null,null,null,null,null,null,null,null,null,null,null,null,null,null,null,null,null,null,null,null,null,null,null,null,"",0,null,null,""]
[null,null,"",null,null,null,null,"",null,null,null,null,null,null,null,null,null,null,null,null,null,null,null,null,null,null,null,null,null,null,null,null,null,null,null,null,null,null,null,null,null,null,null,null,null,null,null,null,null,null,null,"",0,null,null,""]
[null,null,"",null,null,null,null,"",null,null,null,null,null,null,null,null,null,null,null,null,null,null,null,null,null,null,null,null,null,null,null,null,null,null,null,null,null,null,null,null,null,null,null,null,null,null,null,null,null,null,null,"",0,null,null,""]
[null,null,"",null,null,null,null,"",null,null,null,null,null,null,null,null,null,null,null,null,null,null,null,null,null,null,null,null,null,null,null,null,null,null,null,null,null,null,null,null,null,null,null,null,null,null,null,null,null,null,null,"",0,null,null,""]
[null,null,"",null,null,null,null,"",null,null,null,null,null,null,null,null,null,null,null,null,null,null,null,null,null,null,null,null,null,null,null,null,null,null,null,null,null,null,null,null,null,null,null,null,null,null,null,null,null,null,null,"",0,null,null,""]
[null,null,"",null,null,null,null,"",null,null,null,null,null,null,null,null,null,null,null,null,null,null,null,null,null,null,null,null,null,null,null,null,null,null,null,null,null,null,null,null,null,null,null,null,null,null,null,null,null,null,null,"",0,null,null,""]
[null,null,"",null,null,null,null,"",null,null,null,null,null,null,null,null,null,null,null,null,null,null,null,null,null,null,null,null,null,null,null,null,null,null,null,null,null,null,null,null,null,null,null,null,null,null,null,null,null,null,null,"",0,null,null,""]
[null,null,"",null,null,null,null,"",null,null,null,null,null,null,null,null,null,null,null,null,null,null,null,null,null,null,null,null,null,null,null,null,null,null,null,null,null,null,null,null,null,null,null,null,null,null,null,null,null,null,null,"",0,null,null,""]
[null,null,"",null,null,null,null,"",null,null,null,null,null,null,null,null,null,null,null,null,null,null,null,null,null,null,null,null,null,null,null,null,null,null,null,null,null,null,null,null,null,null,null,null,null,null,null,null,null,null,null,"",0,null,null,""]
[null,null,"",null,null,null,null,"",null,null,null,null,null,null,null,null,null,null,null,null,null,null,null,null,null,null,null,null,null,null,null,null,null,null,null,null,null,null,null,null,null,null,null,null,null,null,null,null,null,null,null,"",0,null,null,""]
[null,null,"",null,null,null,null,"",null,null,null,null,null,null,null,null,null,null,null,null,null,null,null,null,null,null,null,null,null,null,null,null,null,null,null,null,null,null,null,null,null,null,null,null,null,null,null,null,null,null,null,"",0,null,null,""]
[null,null,"",null,null,null,null,"",null,null,null,null,null,null,null,null,null,null,null,null,null,null,null,null,null,null,null,null,null,null,null,null,null,null,null,null,null,null,null,null,null,null,null,null,null,null,null,null,null,null,null,"",0,null,null,""]
[null,null,"",null,null,null,null,"",null,null,null,null,null,null,null,null,null,null,null,null,null,null,null,null,null,null,null,null,null,null,null,null,null,null,null,null,null,null,null,null,null,null,null,null,null,null,null,null,null,null,null,"",0,null,null,""]
[null,"TOTAL",{"$f":"C3","v":"$"},{"$f":"SUM(D11:D40)","v":0},null,null,null,null,null,null,null,null,null,null,null,null,null,null,null,null,null,null,null,null,null,null,null,null,null,null,null,null,null,null,null,null,null,null,null,null,null,null,null,null,null,null,null,null,"TOTAL",null,null,{"$f":"C3","v":"$"},{"$f":"SUM(BA11:BA40)","v":0},null,"TOTAL",{"$f":"C3","v":"$"},{"$f":"SUM(BE11:BE40)","v":0}]

{"sheet":"May","index":5,"n_rows":41,"n_cols":57,"rows_kept":41,"cut":false,"hidden":false,"merged":[[8,1,8,3],[8,5,8,8],[8,54,8,56],[40,48,40,50],[7,9,7,13],[7,14,7,44],[7,45,7,50],[4,7,5,7],[4,8,5,10],[4,43,5,48],[4,49,5,49],[4,50,5,52],[4,5,5,6],[0,0,0,1],[2,1,3,1],[2,2,3,3],[4,1,5,1],[4,2,5,3]]}
[]
[]
[null,"Currency","$"]
[]
[null,"Payday Week","(Week 1) 26 Apr - 2 May 2021",null,null,"INCOME TOTAL",null,{"$f":"C3","v":"$"},{"$f":"D41","v":0},null,null,null,null,null,null,null,null,null,null,null,null,null,null,null,null,null,null,null,null,null,null,null,null,null,null,null,null,null,null,null,null,null,null,"INCOME BALANCE",null,null,null,null,null,{"$f":"C3","v":"$"},{"$f":"D41-BA41","v":0}]
[]
[]
[null,null,null,null,null,null,null,null,null,"Apr",null,null,null,null,"May",null,null,null,null,null,null,null,null,null,null,null,null,null,null,null,null,null,null,null,null,null,null,null,null,null,null,null,null,null,null,"Jun"]
[null,"Income Table",null,null,null,"Main Table",null,null,null,26,27,28,29,30,1,2,3,4,5,6,7,8,9,10,11,12,13,14,15,16,17,18,19,20,21,22,23,24,25,26,27,28,29,30,31,1,2,3,4,5,6,null,null,null,"Pocket Balance Table"]
[null,"Income",null,"Value",null,"Category","Expense",null,"Budget","M","T","W","T","F","S","S","M","T","W","T","F","S","S","M","T","W","T","F","S","S","M","T","W","T","F","S","S","M","T","W","T","F","S","S","M","T","W","T","F","S","S",null,"Sum",null,"Balance",null,"Value"]
[null,null,{"$f":"IF(B11<>\"\", $C$3,\"\")","v":""},null,null,null,null,{"$f":"+IF(G11<>\"\",$C$3,\"\")","v":""},null,null,null,null,null,null,null,null,null,null,null,null,null,null,null,null,null,null,null,null,null,null,null,null,null,null,null,null,null,null,null,null,null,null,null,null,null,null,null,null,null,null,null,{"$f":"IF(BA11<>0,$C$3,\"\")","v":""},{"$f":"SUM(J11:AY11)","v":0},null,null,{"$f":"IF(BC11<>\"\",$C$3,\"\")","v":""}]
[null,null,{"$f":"IF(B12<>\"\", $C$3,\"\")","v":""},null,null,null,null,{"$f":"+IF(G12<>\"\",$C$3,\"\")","v":""},null,null,null,null,null,null,null,null,null,null,null,null,null,null,null,null,null,null,null,null,null,null,null,null,null,null,null,null,null,null,null,null,null,null,null,null,null,null,null,null,null,null,null,{"$f":"IF(BA12<>0,$C$3,\"\")","v":""},{"$f":"SUM(J12:AY12)","v":0},null,null,{"$f":"IF(BC12<>\"\",$C$3,\"\")","v":""}]
[null,null,{"$f":"IF(B13<>\"\", $C$3,\"\")","v":""},null,null,null,null,{"$f":"+IF(G13<>\"\",$C$3,\"\")","v":""},null,null,null,null,null,null,null,null,null,null,null,null,null,null,null,null,null,null,null,null,null,null,null,null,null,null,null,null,null,null,null,null,null,null,null,null,null,null,null,null,null,null,null,"",0,null,null,""]
[null,null,"",null,null,null,null,"",null,null,null,null,null,null,null,null,null,null,null,null,null,null,null,null,null,null,null,null,null,null,null,null,null,null,null,null,null,null,null,null,null,null,null,null,null,null,null,null,null,null,null,"",0,null,null,""]
[null,null,"",null,null,null,null,"",null,null,null,null,null,null,null,null,null,null,null,null,null,null,null,null,null,null,null,null,null,null,null,null,null,null,null,null,null,null,null,null,null,null,null,null,null,null,null,null,null,null,null,{"$f":"IF(BA15<>0,$C$3,\"\")","v":""},0,null,null,""]
[null,null,"",null,null,null,null,"",null,null,null,null,null,null,null,null,null,null,null,null,null,null,null,null,null,null,null,null,null,null,null,null,null,null,null,null,null,null,null,null,null,null,null,null,null,null,null,null,null,null,null,{"$f":"IF(BA16<>0,$C$3,\"\")","v":""},0,null,null,""]
[null,null,"",null,null,null,null,"",null,null,null,null,null,null,null,null,null,null,null,null,null,null,null,null,null,null,null,null,null,null,null,null,null,null,null,null,null,null,null,null,null,null,null,null,null,null,null,null,null,null,null,"",0,null,null,""]
[null,null,"",null,null,null,null,"",null,null,null,null,null,null,null,null,null,null,null,null,null,null,null,null,null,null,null,null,null,null,null,null,null,null,null,null,null,null,null,null,null,null,null,null,null,null,null,null,null,null,null,"",0,null,null,""]
[null,null,"",null,null,null,null,"",null,null,null,null,null,null,null,null,null,null,null,null,null,null,null,null,null,null,null,null,null,null,null,null,null,null,null,null,null,null,null,null,null,null,null,null,null,null,null,null,null,null,null,"",0,null,null,""]
[null,null,"",null,null,null,null,"",null,null,null,null,null,null,null,null,null,null,null,null,null,null,null,null,null,null,null,null,null,null,null,null,null,null,null,null,null,null,null,null,null,null,null,null,null,null,null,null,null,null,null,"",0,null,null,""]
[null,null,"",null,null,null,null,"",null,null,null,null,null,null,null,null,null,null,null,null,null,null,null,null,null,null,null,null,null,null,null,null,null,null,null,null,null,null,null,null,null,null,null,null,null,null,null,null,null,null,null,"",0,null,null,""]
[null,null,"",null,null,null,null,"",null,null,null,null,null,null,null,null,null,null,null,null,null,null,null,null,null,null,null,null,null,null,null,null,null,null,null,null,null,null,null,null,null,null,null,null,null,null,null,null,null,null,null,"",0,null,null,""]
[null,null,"",null,null,null,null,"",null,null,null,null,null,null,null,null,null,null,null,null,null,null,null,null,null,null,null,null,null,null,null,null,null,null,null,null,null,null,null,null,null,null,null,null,null,null,null,null,null,null,null,"",0,null,null,""]
[null,null,"",null,null,null,null,"",null,null,null,null,null,null,null,null,null,null,null,null,null,null,null,null,null,null,null,null,null,null,null,null,null,null,null,null,null,null,null,null,null,null,null,null,null,null,null,null,null,null,null,"",0,null,null,""]
[null,null,"",null,null,null,null,"",null,null,null,null,null,null,null,null,null,null,null,null,null,null,null,null,null,null,null,null,null,null,null,null,null,null,null,null,null,null,null,null,null,null,null,null,null,null,null,null,null,null,null,"",0,null,null,""]
[null,null,"",null,null,null,null,"",null,null,null,null,null,null,null,null,null,null,null,null,null,null,null,null,null,null,null,null,null,null,null,null,null,null,null,null,null,null,null,null,null,null,null,null,null,null,null,null,null,null,null,"",0,null,null,""]
[null,null,"",null,null,null,null,"",null,null,null,null,null,null,null,null,null,null,null,null,null,null,null,null,null,null,null,null,null,null,null,null,null,null,null,null,null,null,null,null,null,null,null,null,null,null,null,null,null,null,null,"",0,null,null,""]
[null,null,"",null,null,null,null,"",null,null,null,null,null,null,null,null,null,null,null,null,null,null,null,null,null,null,null,null,null,null,null,null,null,null,null,null,null,null,null,null,null,null,null,null,null,null,null,null,null,null,null,"",0,null,null,""]
[null,null,"",null,null,null,null,"",null,null,null,null,null,null,null,null,null,null,null,null,null,null,null,null,null,null,null,null,null,null,null,null,null,null,null,null,null,null,null,null,null,null,null,null,null,null,null,null,null,null,null,"",0,null,null,""]
[null,null,"",null,null,null,null,"",null,null,null,null,null,null,null,null,null,null,null,null,null,null,null,null,null,null,null,null,null,null,null,null,null,null,null,null,null,null,null,null,null,null,null,null,null,null,null,null,null,null,null,"",0,null,null,""]
[null,null,"",null,null,null,null,"",null,null,null,null,null,null,null,null,null,null,null,null,null,null,null,null,null,null,null,null,null,null,null,null,null,null,null,null,null,null,null,null,null,null,null,null,null,null,null,null,null,null,null,"",0,null,null,""]
[null,null,"",null,null,null,null,"",null,null,null,null,null,null,null,null,null,null,null,null,null,null,null,null,null,null,null,null,null,null,null,null,null,null,null,null,null,null,null,null,null,null,null,null,null,null,null,null,null,null,null,"",0,null,null,""]
[null,null,"",null,null,null,null,"",null,null,null,null,null,null,null,null,null,null,null,null,null,null,null,null,null,null,null,null,null,null,null,null,null,null,null,null,null,null,null,null,null,null,null,null,null,null,null,null,null,null,null,"",0,null,null,""]
[null,null,"",null,null,null,null,"",null,null,null,null,null,null,null,null,null,null,null,null,null,null,null,null,null,null,null,null,null,null,null,null,null,null,null,null,null,null,null,null,null,null,null,null,null,null,null,null,null,null,null,"",0,null,null,""]
[null,null,"",null,null,null,null,"",null,null,null,null,null,null,null,null,null,null,null,null,null,null,null,null,null,null,null,null,null,null,null,null,null,null,null,null,null,null,null,null,null,null,null,null,null,null,null,null,null,null,null,"",0,null,null,""]
[null,null,"",null,null,null,null,"",null,null,null,null,null,null,null,null,null,null,null,null,null,null,null,null,null,null,null,null,null,null,null,null,null,null,null,null,null,null,null,null,null,null,null,null,null,null,null,null,null,null,null,"",0,null,null,""]
[null,null,"",null,null,null,null,"",null,null,null,null,null,null,null,null,null,null,null,null,null,null,null,null,null,null,null,null,null,null,null,null,null,null,null,null,null,null,null,null,null,null,null,null,null,null,null,null,null,null,null,"",0,null,null,""]
[null,null,"",null,null,null,null,"",null,null,null,null,null,null,null,null,null,null,null,null,null,null,null,null,null,null,null,null,null,null,null,null,null,null,null,null,null,null,null,null,null,null,null,null,null,null,null,null,null,null,null,"",0,null,null,""]
[null,null,"",null,null,null,null,"",null,null,null,null,null,null,null,null,null,null,null,null,null,null,null,null,null,null,null,null,null,null,null,null,null,null,null,null,null,null,null,null,null,null,null,null,null,null,null,null,null,null,null,"",0,null,null,""]
[null,null,"",null,null,null,null,"",null,null,null,null,null,null,null,null,null,null,null,null,null,null,null,null,null,null,null,null,null,null,null,null,null,null,null,null,null,null,null,null,null,null,null,null,null,null,null,null,null,null,null,"",0,null,null,""]
[null,"TOTAL",{"$f":"C3","v":"$"},{"$f":"SUM(D11:D40)","v":0},null,null,null,null,null,null,null,null,null,null,null,null,null,null,null,null,null,null,null,null,null,null,null,null,null,null,null,null,null,null,null,null,null,null,null,null,null,null,null,null,null,null,null,null,"TOTAL",null,null,{"$f":"C3","v":"$"},{"$f":"SUM(BA11:BA40)","v":0},null,"TOTAL",{"$f":"C3","v":"$"},{"$f":"SUM(BE11:BE40)","v":0}]

{"sheet":"June","index":6,"n_rows":41,"n_cols":57,"rows_kept":41,"cut":false,"hidden":false,"merged":[[7,40,7,50],[7,10,7,39],[8,1,8,3],[8,5,8,8],[8,54,8,56],[40,48,40,50],[4,7,5,7],[4,8,5,10],[4,43,5,48],[4,49,5,49],[4,50,5,52],[4,5,5,6],[0,0,0,1],[2,1,3,1],[2,2,3,3],[4,1,5,1],[4,2,5,3]]}
[]
[]
[null,"Currency","$"]
[]
[null,"Payday Week","(Week 1) 31 May - 6 Jun 2021",null,null,"INCOME TOTAL",null,{"$f":"C3","v":"$"},{"$f":"D41","v":0},null,null,null,null,null,null,null,null,null,null,null,null,null,null,null,null,null,null,null,null,null,null,null,null,null,null,null,null,null,null,null,null,null,null,"INCOME BALANCE",null,null,null,null,null,{"$f":"C3","v":"$"},{"$f":"D41-BA41","v":0}]
[]
[]
[null,null,null,null,null,null,null,null,null,"May","Jun",null,null,null,null,null,null,null,null,null,null,null,null,null,null,null,null,null,null,null,null,null,null,null,null,null,null,null,null,null,"Jul"]
[null,"Income Table",null,null,null,"Main Table",null,null,null,31,1,2,3,4,5,6,7,8,9,10,11,12,13,14,15,16,17,18,19,20,21,22,23,24,25,26,27,28,29,30,1,2,3,4,5,6,7,8,9,10,11,null,null,null,"Pocket Balance Table"]
[null,"Income",null,"Value",null,"Category","Expense",null,"Budget","M","T","W","T","F","S","S","M","T","W","T","F","S","S","M","T","W","T","F","S","S","M","T","W","T","F","S","S","M","T","W","T","F","S","S","M","T","W","T","F","S","S",null,"Sum",null,"Balance",null,"Value"]
[null,null,{"$f":"IF(B11<>\"\", $C$3,\"\")","v":""},null,null,null,null,{"$f":"+IF(G11<>\"\",$C$3,\"\")","v":""},null,null,null,null,null,null,null,null,null,null,null,null,null,null,null,null,null,null,null,null,null,null,null,null,null,null,null,null,null,null,null,null,null,null,null,null,null,null,null,null,null,null,null,{"$f":"IF(BA11<>0,$C$3,\"\")","v":""},{"$f":"SUM(J11:AY11)","v":0},null,null,{"$f":"IF(BC11<>\"\",$C$3,\"\")","v":""}]
[null,null,{"$f":"IF(B12<>\"\", $C$3,\"\")","v":""},null,null,null,null,{"$f":"+IF(G12<>\"\",$C$3,\"\")","v":""},null,null,null,null,null,null,null,null,null,null,null,null,null,null,null,null,null,null,null,null,null,null,null,null,null,null,null,null,null,null,null,null,null,null,null,null,null,null,null,null,null,null,null,{"$f":"IF(BA12<>0,$C$3,\"\")","v":""},{"$f":"SUM(J12:AY12)","v":0},null,null,{"$f":"IF(BC12<>\"\",$C$3,\"\")","v":""}]
[null,null,{"$f":"IF(B13<>\"\", $C$3,\"\")","v":""},null,null,null,null,{"$f":"+IF(G13<>\"\",$C$3,\"\")","v":""},null,null,null,null,null,null,null,null,null,null,null,null,null,null,null,null,null,null,null,null,null,null,null,null,null,null,null,null,null,null,null,null,null,null,null,null,null,null,null,null,null,null,null,"",0,null,null,""]
[null,null,"",null,null,null,null,"",null,null,null,null,null,null,null,null,null,null,null,null,null,null,null,null,null,null,null,null,null,null,null,null,null,null,null,null,null,null,null,null,null,null,null,null,null,null,null,null,null,null,null,"",0,null,null,""]
[null,null,"",null,null,null,null,"",null,null,null,null,null,null,null,null,null,null,null,null,null,null,null,null,null,null,null,null,null,null,null,null,null,null,null,null,null,null,null,null,null,null,null,null,null,null,null,null,null,null,null,{"$f":"IF(BA15<>0,$C$3,\"\")","v":""},0,null,null,""]
[null,null,"",null,null,null,null,"",null,null,null,null,null,null,null,null,null,null,null,null,null,null,null,null,null,null,null,null,null,null,null,null,null,null,null,null,null,null,null,null,null,null,null,null,null,null,null,null,null,null,null,{"$f":"IF(BA16<>0,$C$3,\"\")","v":""},0,null,null,""]
[null,null,"",null,null,null,null,"",null,null,null,null,null,null,null,null,null,null,null,null,null,null,null,null,null,null,null,null,null,null,null,null,null,null,null,null,null,null,null,null,null,null,null,null,null,null,null,null,null,null,null,"",0,null,null,""]
[null,null,"",null,null,null,null,"",null,null,null,null,null,null,null,null,null,null,null,null,null,null,null,null,null,null,null,null,null,null,null,null,null,null,null,null,null,null,null,null,null,null,null,null,null,null,null,null,null,null,null,"",0,null,null,""]
[null,null,"",null,null,null,null,"",null,null,null,null,null,null,null,null,null,null,null,null,null,null,null,null,null,null,null,null,null,null,null,null,null,null,null,null,null,null,null,null,null,null,null,null,null,null,null,null,null,null,null,"",0,null,null,""]
[null,null,"",null,null,null,null,"",null,null,null,null,null,null,null,null,null,null,null,null,null,null,null,null,null,null,null,null,null,null,null,null,null,null,null,null,null,null,null,null,null,null,null,null,null,null,null,null,null,null,null,"",0,null,null,""]
[null,null,"",null,null,null,null,"",null,null,null,null,null,null,null,null,null,null,null,null,null,null,null,null,null,null,null,null,null,null,null,null,null,null,null,null,null,null,null,null,null,null,null,null,null,null,null,null,null,null,null,"",0,null,null,""]
[null,null,"",null,null,null,null,"",null,null,null,null,null,null,null,null,null,null,null,null,null,null,null,null,null,null,null,null,null,null,null,null,null,null,null,null,null,null,null,null,null,null,null,null,null,null,null,null,null,null,null,"",0,null,null,""]
[null,null,"",null,null,null,null,"",null,null,null,null,null,null,null,null,null,null,null,null,null,null,null,null,null,null,null,null,null,null,null,null,null,null,null,null,null,null,null,null,null,null,null,null,null,null,null,null,null,null,null,"",0,null,null,""]
[null,null,"",null,null,null,null,"",null,null,null,null,null,null,null,null,null,null,null,null,null,null,null,null,null,null,null,null,null,null,null,null,null,null,null,null,null,null,null,null,null,null,null,null,null,null,null,null,null,null,null,"",0,null,null,""]
[null,null,"",null,null,null,null,"",null,null,null,null,null,null,null,null,null,null,null,null,null,null,null,null,null,null,null,null,null,null,null,null,null,null,null,null,null,null,null,null,null,null,null,null,null,null,null,null,null,null,null,"",0,null,null,""]
[null,null,"",null,null,null,null,"",null,null,null,null,null,null,null,null,null,null,null,null,null,null,null,null,null,null,null,null,null,null,null,null,null,null,null,null,null,null,null,null,null,null,null,null,null,null,null,null,null,null,null,"",0,null,null,""]
[null,null,"",null,null,null,null,"",null,null,null,null,null,null,null,null,null,null,null,null,null,null,null,null,null,null,null,null,null,null,null,null,null,null,null,null,null,null,null,null,null,null,null,null,null,null,null,null,null,null,null,"",0,null,null,""]
[null,null,"",null,null,null,null,"",null,null,null,null,null,null,null,null,null,null,null,null,null,null,null,null,null,null,null,null,null,null,null,null,null,null,null,null,null,null,null,null,null,null,null,null,null,null,null,null,null,null,null,"",0,null,null,""]
[null,null,"",null,null,null,null,"",null,null,null,null,null,null,null,null,null,null,null,null,null,null,null,null,null,null,null,null,null,null,null,null,null,null,null,null,null,null,null,null,null,null,null,null,null,null,null,null,null,null,null,"",0,null,null,""]
[null,null,"",null,null,null,null,"",null,null,null,null,null,null,null,null,null,null,null,null,null,null,null,null,null,null,null,null,null,null,null,null,null,null,null,null,null,null,null,null,null,null,null,null,null,null,null,null,null,null,null,"",0,null,null,""]
[null,null,"",null,null,null,null,"",null,null,null,null,null,null,null,null,null,null,null,null,null,null,null,null,null,null,null,null,null,null,null,null,null,null,null,null,null,null,null,null,null,null,null,null,null,null,null,null,null,null,null,"",0,null,null,""]
[null,null,"",null,null,null,null,"",null,null,null,null,null,null,null,null,null,null,null,null,null,null,null,null,null,null,null,null,null,null,null,null,null,null,null,null,null,null,null,null,null,null,null,null,null,null,null,null,null,null,null,"",0,null,null,""]
[null,null,"",null,null,null,null,"",null,null,null,null,null,null,null,null,null,null,null,null,null,null,null,null,null,null,null,null,null,null,null,null,null,null,null,null,null,null,null,null,null,null,null,null,null,null,null,null,null,null,null,"",0,null,null,""]
[null,null,"",null,null,null,null,"",null,null,null,null,null,null,null,null,null,null,null,null,null,null,null,null,null,null,null,null,null,null,null,null,null,null,null,null,null,null,null,null,null,null,null,null,null,null,null,null,null,null,null,"",0,null,null,""]
[null,null,"",null,null,null,null,"",null,null,null,null,null,null,null,null,null,null,null,null,null,null,null,null,null,null,null,null,null,null,null,null,null,null,null,null,null,null,null,null,null,null,null,null,null,null,null,null,null,null,null,"",0,null,null,""]
[null,null,"",null,null,null,null,"",null,null,null,null,null,null,null,null,null,null,null,null,null,null,null,null,null,null,null,null,null,null,null,null,null,null,null,null,null,null,null,null,null,null,null,null,null,null,null,null,null,null,null,"",0,null,null,""]
[null,null,"",null,null,null,null,"",null,null,null,null,null,null,null,null,null,null,null,null,null,null,null,null,null,null,null,null,null,null,null,null,null,null,null,null,null,null,null,null,null,null,null,null,null,null,null,null,null,null,null,"",0,null,null,""]
[null,null,"",null,null,null,null,"",null,null,null,null,null,null,null,null,null,null,null,null,null,null,null,null,null,null,null,null,null,null,null,null,null,null,null,null,null,null,null,null,null,null,null,null,null,null,null,null,null,null,null,"",0,null,null,""]
[null,null,"",null,null,null,null,"",null,null,null,null,null,null,null,null,null,null,null,null,null,null,null,null,null,null,null,null,null,null,null,null,null,null,null,null,null,null,null,null,null,null,null,null,null,null,null,null,null,null,null,"",0,null,null,""]
[null,null,"",null,null,null,null,"",null,null,null,null,null,null,null,null,null,null,null,null,null,null,null,null,null,null,null,null,null,null,null,null,null,null,null,null,null,null,null,null,null,null,null,null,null,null,null,null,null,null,null,"",0,null,null,""]
[null,"TOTAL",{"$f":"C3","v":"$"},{"$f":"SUM(D11:D40)","v":0},null,null,null,null,null,null,null,null,null,null,null,null,null,null,null,null,null,null,null,null,null,null,null,null,null,null,null,null,null,null,null,null,null,null,null,null,null,null,null,null,null,null,null,null,"TOTAL",null,null,{"$f":"C3","v":"$"},{"$f":"SUM(BA11:BA40)","v":0},null,"TOTAL",{"$f":"C3","v":"$"},{"$f":"SUM(BE11:BE40)","v":0}]

{"sheet":"July","index":7,"n_rows":41,"n_cols":57,"rows_kept":41,"cut":false,"hidden":false,"merged":[[7,43,7,50],[7,12,7,42],[8,1,8,3],[8,5,8,8],[8,54,8,56],[40,48,40,50],[4,7,5,7],[4,8,5,10],[4,43,5,48],[4,49,5,49],[4,50,5,52],[4,5,5,6],[7,9,7,11],[0,0,0,1],[2,1,3,1],[2,2,3,3],[4,1,5,1],[4,2,5,3]]}
[]
[]
[null,"Currency","$"]
[]
[null,"Payday Week","(Week 1) 28 Jun - 4 Jul 2021",null,null,"INCOME TOTAL",null,{"$f":"C3","v":"$"},{"$f":"D41","v":0},null,null,null,null,null,null,null,null,null,null,null,null,null,null,null,null,null,null,null,null,null,null,null,null,null,null,null,null,null,null,null,null,null,null,"INCOME BALANCE",null,null,null,null,null,{"$f":"C3","v":"$"},{"$f":"D41-BA41","v":0}]
[]
[]
[null,null,null,null,null,null,null,null,null,"Jun",null,null,"Jul",null,null,null,null,null,null,null,null,null,null,null,null,null,null,null,null,null,null,null,null,null,null,null,null,null,null,null,null,null,null,"Aug"]
[null,"Income Table",null,null,null,"Main Table",null,null,null,28,29,30,1,2,3,4,5,6,7,8,9,10,11,12,13,14,15,16,17,18,19,20,21,22,23,24,25,26,27,28,29,30,31,1,2,3,4,5,6,7,8,null,null,null,"Pocket Balance Table"]
[null,"Income",null,"Value",null,"Category","Expense",null,"Budget","M","T","W","T","F","S","S","M","T","W","T","F","S","S","M","T","W","T","F","S","S","M","T","W","T","F","S","S","M","T","W","T","F","S","S","M","T","W","T","F","S","S",null,"Sum",null,"Balance",null,"Value"]
[null,null,{"$f":"IF(B11<>\"\", $C$3,\"\")","v":""},null,null,null,null,{"$f":"+IF(G11<>\"\",$C$3,\"\")","v":""},null,null,null,null,null,null,null,null,null,null,null,null,null,null,null,null,null,null,null,null,null,null,null,null,null,null,null,null,null,null,null,null,null,null,null,null,null,null,null,null,null,null,null,{"$f":"IF(BA11<>0,$C$3,\"\")","v":""},{"$f":"SUM(J11:AY11)","v":0},null,null,{"$f":"IF(BC11<>\"\",$C$3,\"\")","v":""}]
[null,null,{"$f":"IF(B12<>\"\", $C$3,\"\")","v":""},null,null,null,null,{"$f":"+IF(G12<>\"\",$C$3,\"\")","v":""},null,null,null,null,null,null,null,null,null,null,null,null,null,null,null,null,null,null,null,null,null,null,null,null,null,null,null,null,null,null,null,null,null,null,null,null,null,null,null,null,null,null,null,{"$f":"IF(BA12<>0,$C$3,\"\")","v":""},{"$f":"SUM(J12:AY12)","v":0},null,null,{"$f":"IF(BC12<>\"\",$C$3,\"\")","v":""}]
[null,null,{"$f":"IF(B13<>\"\", $C$3,\"\")","v":""},null,null,null,null,{"$f":"+IF(G13<>\"\",$C$3,\"\")","v":""},null,null,null,null,null,null,null,null,null,null,null,null,null,null,null,null,null,null,null,null,null,null,null,null,null,null,null,null,null,null,null,null,null,null,null,null,null,null,null,null,null,null,null,"",0,null,null,""]
[null,null,"",null,null,null,null,"",null,null,null,null,null,null,null,null,null,null,null,null,null,null,null,null,null,null,null,null,null,null,null,null,null,null,null,null,null,null,null,null,null,null,null,null,null,null,null,null,null,null,null,"",0,null,null,""]
[null,null,"",null,null,null,null,"",null,null,null,null,null,null,null,null,null,null,null,null,null,null,null,null,null,null,null,null,null,null,null,null,null,null,null,null,null,null,null,null,null,null,null,null,null,null,null,null,null,null,null,{"$f":"IF(BA15<>0,$C$3,\"\")","v":""},0,null,null,""]
[null,null,"",null,null,null,null,"",null,null,null,null,null,null,null,null,null,null,null,null,null,null,null,null,null,null,null,null,null,null,null,null,null,null,null,null,null,null,null,null,null,null,null,null,null,null,null,null,null,null,null,{"$f":"IF(BA16<>0,$C$3,\"\")","v":""},0,null,null,""]
[null,null,"",null,null,null,null,"",null,null,null,null,null,null,null,null,null,null,null,null,null,null,null,null,null,null,null,null,null,null,null,null,null,null,null,null,null,null,null,null,null,null,null,null,null,null,null,null,null,null,null,"",0,null,null,""]
[null,null,"",null,null,null,null,"",null,null,null,null,null,null,null,null,null,null,null,null,null,null,null,null,null,null,null,null,null,null,null,null,null,null,null,null,null,null,null,null,null,null,null,null,null,null,null,null,null,null,null,"",0,null,null,""]
[null,null,"",null,null,null,null,"",null,null,null,null,null,null,null,null,null,null,null,null,null,null,null,null,null,null,null,null,null,null,null,null,null,null,null,null,null,null,null,null,null,null,null,null,null,null,null,null,null,null,null,"",0,null,null,""]
[null,null,"",null,null,null,null,"",null,null,null,null,null,null,null,null,null,null,null,null,null,null,null,null,null,null,null,null,null,null,null,null,null,null,null,null,null,null,null,null,null,null,null,null,null,null,null,null,null,null,null,"",0,null,null,""]
[null,null,"",null,null,null,null,"",null,null,null,null,null,null,null,null,null,null,null,null,null,null,null,null,null,null,null,null,null,null,null,null,null,null,null,null,null,null,null,null,null,null,null,null,null,null,null,null,null,null,null,"",0,null,null,""]
[null,null,"",null,null,null,null,"",null,null,null,null,null,null,null,null,null,null,null,null,null,null,null,null,null,null,null,null,null,null,null,null,null,null,null,null,null,null,null,null,null,null,null,null,null,null,null,null,null,null,null,"",0,null,null,""]
[null,null,"",null,null,null,null,"",null,null,null,null,null,null,null,null,null,null,null,null,null,null,null,null,null,null,null,null,null,null,null,null,null,null,null,null,null,null,null,null,null,null,null,null,null,null,null,null,null,null,null,"",0,null,null,""]
[null,null,"",null,null,null,null,"",null,null,null,null,null,null,null,null,null,null,null,null,null,null,null,null,null,null,null,null,null,null,null,null,null,null,null,null,null,null,null,null,null,null,null,null,null,null,null,null,null,null,null,"",0,null,null,""]
[null,null,"",null,null,null,null,"",null,null,null,null,null,null,null,null,null,null,null,null,null,null,null,null,null,null,null,null,null,null,null,null,null,null,null,null,null,null,null,null,null,null,null,null,null,null,null,null,null,null,null,"",0,null,null,""]
[null,null,"",null,null,null,null,"",null,null,null,null,null,null,null,null,null,null,null,null,null,null,null,null,null,null,null,null,null,null,null,null,null,null,null,null,null,null,null,null,null,null,null,null,null,null,null,null,null,null,null,"",0,null,null,""]
[null,null,"",null,null,null,null,"",null,null,null,null,null,null,null,null,null,null,null,null,null,null,null,null,null,null,null,null,null,null,null,null,null,null,null,null,null,null,null,null,null,null,null,null,null,null,null,null,null,null,null,"",0,null,null,""]
[null,null,"",null,null,null,null,"",null,null,null,null,null,null,null,null,null,null,null,null,null,null,null,null,null,null,null,null,null,null,null,null,null,null,null,null,null,null,null,null,null,null,null,null,null,null,null,null,null,null,null,"",0,null,null,""]
[null,null,"",null,null,null,null,"",null,null,null,null,null,null,null,null,null,null,null,null,null,null,null,null,null,null,null,null,null,null,null,null,null,null,null,null,null,null,null,null,null,null,null,null,null,null,null,null,null,null,null,"",0,null,null,""]
[null,null,"",null,null,null,null,"",null,null,null,null,null,null,null,null,null,null,null,null,null,null,null,null,null,null,null,null,null,null,null,null,null,null,null,null,null,null,null,null,null,null,null,null,null,null,null,null,null,null,null,"",0,null,null,""]
[null,null,"",null,null,null,null,"",null,null,null,null,null,null,null,null,null,null,null,null,null,null,null,null,null,null,null,null,null,null,null,null,null,null,null,null,null,null,null,null,null,null,null,null,null,null,null,null,null,null,null,"",0,null,null,""]
[null,null,"",null,null,null,null,"",null,null,null,null,null,null,null,null,null,null,null,null,null,null,null,null,null,null,null,null,null,null,null,null,null,null,null,null,null,null,null,null,null,null,null,null,null,null,null,null,null,null,null,"",0,null,null,""]
[null,null,"",null,null,null,null,"",null,null,null,null,null,null,null,null,null,null,null,null,null,null,null,null,null,null,null,null,null,null,null,null,null,null,null,null,null,null,null,null,null,null,null,null,null,null,null,null,null,null,null,"",0,null,null,""]
[null,null,"",null,null,null,null,"",null,null,null,null,null,null,null,null,null,null,null,null,null,null,null,null,null,null,null,null,null,null,null,null,null,null,null,null,null,null,null,null,null,null,null,null,null,null,null,null,null,null,null,"",0,null,null,""]
[null,null,"",null,null,null,null,"",null,null,null,null,null,null,null,null,null,null,null,null,null,null,null,null,null,null,null,null,null,null,null,null,null,null,null,null,null,null,null,null,null,null,null,null,null,null,null,null,null,null,null,"",0,null,null,""]
[null,null,"",null,null,null,null,"",null,null,null,null,null,null,null,null,null,null,null,null,null,null,null,null,null,null,null,null,null,null,null,null,null,null,null,null,null,null,null,null,null,null,null,null,null,null,null,null,null,null,null,"",0,null,null,""]
[null,null,"",null,null,null,null,"",null,null,null,null,null,null,null,null,null,null,null,null,null,null,null,null,null,null,null,null,null,null,null,null,null,null,null,null,null,null,null,null,null,null,null,null,null,null,null,null,null,null,null,"",0,null,null,""]
[null,null,"",null,null,null,null,"",null,null,null,null,null,null,null,null,null,null,null,null,null,null,null,null,null,null,null,null,null,null,null,null,null,null,null,null,null,null,null,null,null,null,null,null,null,null,null,null,null,null,null,"",0,null,null,""]
[null,null,"",null,null,null,null,"",null,null,null,null,null,null,null,null,null,null,null,null,null,null,null,null,null,null,null,null,null,null,null,null,null,null,null,null,null,null,null,null,null,null,null,null,null,null,null,null,null,null,null,"",0,null,null,""]
[null,null,"",null,null,null,null,"",null,null,null,null,null,null,null,null,null,null,null,null,null,null,null,null,null,null,null,null,null,null,null,null,null,null,null,null,null,null,null,null,null,null,null,null,null,null,null,null,null,null,null,"",0,null,null,""]
[null,"TOTAL",{"$f":"C3","v":"$"},{"$f":"SUM(D11:D40)","v":0},null,null,null,null,null,null,null,null,null,null,null,null,null,null,null,null,null,null,null,null,null,null,null,null,null,null,null,null,null,null,null,null,null,null,null,null,null,null,null,null,null,null,null,null,"TOTAL",null,null,{"$f":"C3","v":"$"},{"$f":"SUM(BA11:BA40)","v":0},null,"TOTAL",{"$f":"C3","v":"$"},{"$f":"SUM(BE11:BE40)","v":0}]

{"sheet":"August","index":8,"n_rows":41,"n_cols":57,"rows_kept":41,"cut":false,"hidden":false,"merged":[[7,46,7,50],[7,15,7,45],[7,9,7,14],[8,1,8,3],[8,5,8,8],[8,54,8,56],[40,48,40,50],[4,7,5,7],[4,8,5,10],[4,43,5,48],[4,49,5,49],[4,50,5,52],[4,5,5,6],[0,0,0,1],[2,1,3,1],[2,2,3,3],[4,1,5,1],[4,2,5,3]]}
[]
[]
[null,"Currency","$"]
[]
[null,"Payday Week","(Week 1) 26 Jul - 1 Aug 2021",null,null,"INCOME TOTAL",null,{"$f":"C3","v":"$"},{"$f":"D41","v":0},null,null,null,null,null,null,null,null,null,null,null,null,null,null,null,null,null,null,null,null,null,null,null,null,null,null,null,null,null,null,null,null,null,null,"INCOME BALANCE",null,null,null,null,null,{"$f":"C3","v":"$"},{"$f":"D41-BA41","v":0}]
[]
[]
[null,null,null,null,null,null,null,null,null,"Jul",null,null,null,null,null,"Aug",null,null,null,null,null,null,null,null,null,null,null,null,null,null,null,null,null,null,null,null,null,null,null,null,null,null,null,null,null,null,"Sep"]
[null,"Income Table",null,null,null,"Main Table",null,null,null,26,27,28,29,30,31,1,2,3,4,5,6,7,8,9,10,11,12,13,14,15,16,17,18,19,20,21,22,23,24,25,26,27,28,29,30,31,1,2,3,4,5,null,null,null,"Pocket Balance Table"]
[null,"Income",null,"Value",null,"Category","Expense",null,"Budget","M","T","W","T","F","S","S","M","T","W","T","F","S","S","M","T","W","T","F","S","S","M","T","W","T","F","S","S","M","T","W","T","F","S","S","M","T","W","T","F","S","S",null,"Sum",null,"Balance",null,"Value"]
[null,null,{"$f":"IF(B11<>\"\", $C$3,\"\")","v":""},null,null,null,null,{"$f":"+IF(G11<>\"\",$C$3,\"\")","v":""},null,null,null,null,null,null,null,null,null,null,null,null,null,null,null,null,null,null,null,null,null,null,null,null,null,null,null,null,null,null,null,null,null,null,null,null,null,null,null,null,null,null,null,{"$f":"IF(BA11<>0,$C$3,\"\")","v":""},{"$f":"SUM(J11:AY11)","v":0},null,null,{"$f":"IF(BC11<>\"\",$C$3,\"\")","v":""}]
[null,null,{"$f":"IF(B12<>\"\", $C$3,\"\")","v":""},null,null,null,null,{"$f":"+IF(G12<>\"\",$C$3,\"\")","v":""},null,null,null,null,null,null,null,null,null,null,null,null,null,null,null,null,null,null,null,null,null,null,null,null,null,null,null,null,null,null,null,null,null,null,null,null,null,null,null,null,null,null,null,{"$f":"IF(BA12<>0,$C$3,\"\")","v":""},{"$f":"SUM(J12:AY12)","v":0},null,null,{"$f":"IF(BC12<>\"\",$C$3,\"\")","v":""}]
[null,null,{"$f":"IF(B13<>\"\", $C$3,\"\")","v":""},null,null,null,null,{"$f":"+IF(G13<>\"\",$C$3,\"\")","v":""},null,null,null,null,null,null,null,null,null,null,null,null,null,null,null,null,null,null,null,null,null,null,null,null,null,null,null,null,null,null,null,null,null,null,null,null,null,null,null,null,null,null,null,"",0,null,null,""]
[null,null,"",null,null,null,null,"",null,null,null,null,null,null,null,null,null,null,null,null,null,null,null,null,null,null,null,null,null,null,null,null,null,null,null,null,null,null,null,null,null,null,null,null,null,null,null,null,null,null,null,"",0,null,null,""]
[null,null,"",null,null,null,null,"",null,null,null,null,null,null,null,null,null,null,null,null,null,null,null,null,null,null,null,null,null,null,null,null,null,null,null,null,null,null,null,null,null,null,null,null,null,null,null,null,null,null,null,{"$f":"IF(BA15<>0,$C$3,\"\")","v":""},0,null,null,""]
[null,null,"",null,null,null,null,"",null,null,null,null,null,null,null,null,null,null,null,null,null,null,null,null,null,null,null,null,null,null,null,null,null,null,null,null,null,null,null,null,null,null,null,null,null,null,null,null,null,null,null,{"$f":"IF(BA16<>0,$C$3,\"\")","v":""},0,null,null,""]
[null,null,"",null,null,null,null,"",null,null,null,null,null,null,null,null,null,null,null,null,null,null,null,null,null,null,null,null,null,null,null,null,null,null,null,null,null,null,null,null,null,null,null,null,null,null,null,null,null,null,null,"",0,null,null,""]
[null,null,"",null,null,null,null,"",null,null,null,null,null,null,null,null,null,null,null,null,null,null,null,null,null,null,null,null,null,null,null,null,null,null,null,null,null,null,null,null,null,null,null,null,null,null,null,null,null,null,null,"",0,null,null,""]
[null,null,"",null,null,null,null,"",null,null,null,null,null,null,null,null,null,null,null,null,null,null,null,null,null,null,null,null,null,null,null,null,null,null,null,null,null,null,null,null,null,null,null,null,null,null,null,null,null,null,null,"",0,null,null,""]
[null,null,"",null,null,null,null,"",null,null,null,null,null,null,null,null,null,null,null,null,null,null,null,null,null,null,null,null,null,null,null,null,null,null,null,null,null,null,null,null,null,null,null,null,null,null,null,null,null,null,null,"",0,null,null,""]
[null,null,"",null,null,null,null,"",null,null,null,null,null,null,null,null,null,null,null,null,null,null,null,null,null,null,null,null,null,null,null,null,null,null,null,null,null,null,null,null,null,null,null,null,null,null,null,null,null,null,null,"",0,null,null,""]
[null,null,"",null,null,null,null,"",null,null,null,null,null,null,null,null,null,null,null,null,null,null,null,null,null,null,null,null,null,null,null,null,null,null,null,null,null,null,null,null,null,null,null,null,null,null,null,null,null,null,null,"",0,null,null,""]
[null,null,"",null,null,null,null,"",null,null,null,null,null,null,null,null,null,null,null,null,null,null,null,null,null,null,null,null,null,null,null,null,null,null,null,null,null,null,null,null,null,null,null,null,null,null,null,null,null,null,null,"",0,null,null,""]
[null,null,"",null,null,null,null,"",null,null,null,null,null,null,null,null,null,null,null,null,null,null,null,null,null,null,null,null,null,null,null,null,null,null,null,null,null,null,null,null,null,null,null,null,null,null,null,null,null,null,null,"",0,null,null,""]
[null,null,"",null,null,null,null,"",null,null,null,null,null,null,null,null,null,null,null,null,null,null,null,null,null,null,null,null,null,null,null,null,null,null,null,null,null,null,null,null,null,null,null,null,null,null,null,null,null,null,null,"",0,null,null,""]
[null,null,"",null,null,null,null,"",null,null,null,null,null,null,null,null,null,null,null,null,null,null,null,null,null,null,null,null,null,null,null,null,null,null,null,null,null,null,null,null,null,null,null,null,null,null,null,null,null,null,null,"",0,null,null,""]
[null,null,"",null,null,null,null,"",null,null,null,null,null,null,null,null,null,null,null,null,null,null,null,null,null,null,null,null,null,null,null,null,null,null,null,null,null,null,null,null,null,null,null,null,null,null,null,null,null,null,null,"",0,null,null,""]
[null,null,"",null,null,null,null,"",null,null,null,null,null,null,null,null,null,null,null,null,null,null,null,null,null,null,null,null,null,null,null,null,null,null,null,null,null,null,null,null,null,null,null,null,null,null,null,null,null,null,null,"",0,null,null,""]
[null,null,"",null,null,null,null,"",null,null,null,null,null,null,null,null,null,null,null,null,null,null,null,null,null,null,null,null,null,null,null,null,null,null,null,null,null,null,null,null,null,null,null,null,null,null,null,null,null,null,null,"",0,null,null,""]
[null,null,"",null,null,null,null,"",null,null,null,null,null,null,null,null,null,null,null,null,null,null,null,null,null,null,null,null,null,null,null,null,null,null,null,null,null,null,null,null,null,null,null,null,null,null,null,null,null,null,null,"",0,null,null,""]
[null,null,"",null,null,null,null,"",null,null,null,null,null,null,null,null,null,null,null,null,null,null,null,null,null,null,null,null,null,null,null,null,null,null,null,null,null,null,null,null,null,null,null,null,null,null,null,null,null,null,null,"",0,null,null,""]
[null,null,"",null,null,null,null,"",null,null,null,null,null,null,null,null,null,null,null,null,null,null,null,null,null,null,null,null,null,null,null,null,null,null,null,null,null,null,null,null,null,null,null,null,null,null,null,null,null,null,null,"",0,null,null,""]
[null,null,"",null,null,null,null,"",null,null,null,null,null,null,null,null,null,null,null,null,null,null,null,null,null,null,null,null,null,null,null,null,null,null,null,null,null,null,null,null,null,null,null,null,null,null,null,null,null,null,null,"",0,null,null,""]
[null,null,"",null,null,null,null,"",null,null,null,null,null,null,null,null,null,null,null,null,null,null,null,null,null,null,null,null,null,null,null,null,null,null,null,null,null,null,null,null,null,null,null,null,null,null,null,null,null,null,null,"",0,null,null,""]
[null,null,"",null,null,null,null,"",null,null,null,null,null,null,null,null,null,null,null,null,null,null,null,null,null,null,null,null,null,null,null,null,null,null,null,null,null,null,null,null,null,null,null,null,null,null,null,null,null,null,null,"",0,null,null,""]
[null,null,"",null,null,null,null,"",null,null,null,null,null,null,null,null,null,null,null,null,null,null,null,null,null,null,null,null,null,null,null,null,null,null,null,null,null,null,null,null,null,null,null,null,null,null,null,null,null,null,null,"",0,null,null,""]
[null,null,"",null,null,null,null,"",null,null,null,null,null,null,null,null,null,null,null,null,null,null,null,null,null,null,null,null,null,null,null,null,null,null,null,null,null,null,null,null,null,null,null,null,null,null,null,null,null,null,null,"",0,null,null,""]
[null,null,"",null,null,null,null,"",null,null,null,null,null,null,null,null,null,null,null,null,null,null,null,null,null,null,null,null,null,null,null,null,null,null,null,null,null,null,null,null,null,null,null,null,null,null,null,null,null,null,null,"",0,null,null,""]
[null,null,"",null,null,null,null,"",null,null,null,null,null,null,null,null,null,null,null,null,null,null,null,null,null,null,null,null,null,null,null,null,null,null,null,null,null,null,null,null,null,null,null,null,null,null,null,null,null,null,null,"",0,null,null,""]
[null,null,"",null,null,null,null,"",null,null,null,null,null,null,null,null,null,null,null,null,null,null,null,null,null,null,null,null,null,null,null,null,null,null,null,null,null,null,null,null,null,null,null,null,null,null,null,null,null,null,null,"",0,null,null,""]
[null,"TOTAL",{"$f":"C3","v":"$"},{"$f":"SUM(D11:D40)","v":0},null,null,null,null,null,null,null,null,null,null,null,null,null,null,null,null,null,null,null,null,null,null,null,null,null,null,null,null,null,null,null,null,null,null,null,null,null,null,null,null,null,null,null,null,"TOTAL",null,null,{"$f":"C3","v":"$"},{"$f":"SUM(BA11:BA40)","v":0},null,"TOTAL",{"$f":"C3","v":"$"},{"$f":"SUM(BE11:BE40)","v":0}]

{"sheet":"September","index":9,"n_rows":41,"n_cols":57,"rows_kept":41,"cut":false,"hidden":false,"merged":[[7,41,7,50],[7,11,7,40],[8,1,8,3],[8,5,8,8],[8,54,8,56],[40,48,40,50],[4,7,5,7],[4,8,5,10],[4,43,5,48],[4,49,5,49],[4,50,5,52],[4,5,5,6],[7,9,7,10],[0,0,0,1],[2,1,3,1],[2,2,3,3],[4,1,5,1],[4,2,5,3]]}
[]
[]
[null,"Currency","$"]
[]
[null,"Payday Week","(Week 1) 30 Aug - 5 Sep 2021",null,null,"INCOME TOTAL",null,{"$f":"C3","v":"$"},{"$f":"D41","v":0},null,null,null,null,null,null,null,null,null,null,null,null,null,null,null,null,null,null,null,null,null,null,null,null,null,null,null,null,null,null,null,null,null,null,"INCOME BALANCE",null,null,null,null,null,{"$f":"C3","v":"$"},{"$f":"D41-BA41","v":0}]
[]
[]
[null,null,null,null,null,null,null,null,null,"Aug",null,"Sep",null,null,null,null,null,null,null,null,null,null,null,null,null,null,null,null,null,null,null,null,null,null,null,null,null,null,null,null,null,"Oct"]
[null,"Income Table",null,null,null,"Main Table",null,null,null,30,31,1,2,3,4,5,6,7,8,9,10,11,12,13,14,15,16,17,18,19,20,21,22,23,24,25,26,27,28,29,30,1,2,3,4,5,6,7,8,9,10,null,null,null,"Pocket Balance Table"]
[null,"Income",null,"Value",null,"Category","Expense",null,"Budget","M","T","W","T","F","S","S","M","T","W","T","F","S","S","M","T","W","T","F","S","S","M","T","W","T","F","S","S","M","T","W","T","F","S","S","M","T","W","T","F","S","S",null,"Sum",null,"Balance",null,"Value"]
[null,null,{"$f":"IF(B11<>\"\", $C$3,\"\")","v":""},null,null,null,null,{"$f":"+IF(G11<>\"\",$C$3,\"\")","v":""},null,null,null,null,null,null,null,null,null,null,null,null,null,null,null,null,null,null,null,null,null,null,null,null,null,null,null,null,null,null,null,null,null,null,null,null,null,null,null,null,null,null,null,{"$f":"IF(BA11<>0,$C$3,\"\")","v":""},{"$f":"SUM(J11:AY11)","v":0},null,null,{"$f":"IF(BC11<>\"\",$C$3,\"\")","v":""}]
[null,null,{"$f":"IF(B12<>\"\", $C$3,\"\")","v":""},null,null,null,null,{"$f":"+IF(G12<>\"\",$C$3,\"\")","v":""},null,null,null,null,null,null,null,null,null,null,null,null,null,null,null,null,null,null,null,null,null,null,null,null,null,null,null,null,null,null,null,null,null,null,null,null,null,null,null,null,null,null,null,{"$f":"IF(BA12<>0,$C$3,\"\")","v":""},{"$f":"SUM(J12:AY12)","v":0},null,null,{"$f":"IF(BC12<>\"\",$C$3,\"\")","v":""}]
[null,null,{"$f":"IF(B13<>\"\", $C$3,\"\")","v":""},null,null,null,null,{"$f":"+IF(G13<>\"\",$C$3,\"\")","v":""},null,null,null,null,null,null,null,null,null,null,null,null,null,null,null,null,null,null,null,null,null,null,null,null,null,null,null,null,null,null,null,null,null,null,null,null,null,null,null,null,null,null,null,"",0,null,null,""]
[null,null,"",null,null,null,null,"",null,null,null,null,null,null,null,null,null,null,null,null,null,null,null,null,null,null,null,null,null,null,null,null,null,null,null,null,null,null,null,null,null,null,null,null,null,null,null,null,null,null,null,"",0,null,null,""]
[null,null,"",null,null,null,null,"",null,null,null,null,null,null,null,null,null,null,null,null,null,null,null,null,null,null,null,null,null,null,null,null,null,null,null,null,null,null,null,null,null,null,null,null,null,null,null,null,null,null,null,{"$f":"IF(BA15<>0,$C$3,\"\")","v":""},0,null,null,""]
[null,null,"",null,null,null,null,"",null,null,null,null,null,null,null,null,null,null,null,null,null,null,null,null,null,null,null,null,null,null,null,null,null,null,null,null,null,null,null,null,null,null,null,null,null,null,null,null,null,null,null,{"$f":"IF(BA16<>0,$C$3,\"\")","v":""},0,null,null,""]
[null,null,"",null,null,null,null,"",null,null,null,null,null,null,null,null,null,null,null,null,null,null,null,null,null,null,null,null,null,null,null,null,null,null,null,null,null,null,null,null,null,null,null,null,null,null,null,null,null,null,null,"",0,null,null,""]
[null,null,"",null,null,null,null,"",null,null,null,null,null,null,null,null,null,null,null,null,null,null,null,null,null,null,null,null,null,null,null,null,null,null,null,null,null,null,null,null,null,null,null,null,null,null,null,null,null,null,null,"",0,null,null,""]
[null,null,"",null,null,null,null,"",null,null,null,null,null,null,null,null,null,null,null,null,null,null,null,null,null,null,null,null,null,null,null,null,null,null,null,null,null,null,null,null,null,null,null,null,null,null,null,null,null,null,null,"",0,null,null,""]
[null,null,"",null,null,null,null,"",null,null,null,null,null,null,null,null,null,null,null,null,null,null,null,null,null,null,null,null,null,null,null,null,null,null,null,null,null,null,null,null,null,null,null,null,null,null,null,null,null,null,null,"",0,null,null,""]
[null,null,"",null,null,null,null,"",null,null,null,null,null,null,null,null,null,null,null,null,null,null,null,null,null,null,null,null,null,null,null,null,null,null,null,null,null,null,null,null,null,null,null,null,null,null,null,null,null,null,null,"",0,null,null,""]
[null,null,"",null,null,null,null,"",null,null,null,null,null,null,null,null,null,null,null,null,null,null,null,null,null,null,null,null,null,null,null,null,null,null,null,null,null,null,null,null,null,null,null,null,null,null,null,null,null,null,null,"",0,null,null,""]
[null,null,"",null,null,null,null,"",null,null,null,null,null,null,null,null,null,null,null,null,null,null,null,null,null,null,null,null,null,null,null,null,null,null,null,null,null,null,null,null,null,null,null,null,null,null,null,null,null,null,null,"",0,null,null,""]
[null,null,"",null,null,null,null,"",null,null,null,null,null,null,null,null,null,null,null,null,null,null,null,null,null,null,null,null,null,null,null,null,null,null,null,null,null,null,null,null,null,null,null,null,null,null,null,null,null,null,null,"",0,null,null,""]
[null,null,"",null,null,null,null,"",null,null,null,null,null,null,null,null,null,null,null,null,null,null,null,null,null,null,null,null,null,null,null,null,null,null,null,null,null,null,null,null,null,null,null,null,null,null,null,null,null,null,null,"",0,null,null,""]
[null,null,"",null,null,null,null,"",null,null,null,null,null,null,null,null,null,null,null,null,null,null,null,null,null,null,null,null,null,null,null,null,null,null,null,null,null,null,null,null,null,null,null,null,null,null,null,null,null,null,null,"",0,null,null,""]
[null,null,"",null,null,null,null,"",null,null,null,null,null,null,null,null,null,null,null,null,null,null,null,null,null,null,null,null,null,null,null,null,null,null,null,null,null,null,null,null,null,null,null,null,null,null,null,null,null,null,null,"",0,null,null,""]
[null,null,"",null,null,null,null,"",null,null,null,null,null,null,null,null,null,null,null,null,null,null,null,null,null,null,null,null,null,null,null,null,null,null,null,null,null,null,null,null,null,null,null,null,null,null,null,null,null,null,null,"",0,null,null,""]
[null,null,"",null,null,null,null,"",null,null,null,null,null,null,null,null,null,null,null,null,null,null,null,null,null,null,null,null,null,null,null,null,null,null,null,null,null,null,null,null,null,null,null,null,null,null,null,null,null,null,null,"",0,null,null,""]
[null,null,"",null,null,null,null,"",null,null,null,null,null,null,null,null,null,null,null,null,null,null,null,null,null,null,null,null,null,null,null,null,null,null,null,null,null,null,null,null,null,null,null,null,null,null,null,null,null,null,null,"",0,null,null,""]
[null,null,"",null,null,null,null,"",null,null,null,null,null,null,null,null,null,null,null,null,null,null,null,null,null,null,null,null,null,null,null,null,null,null,null,null,null,null,null,null,null,null,null,null,null,null,null,null,null,null,null,"",0,null,null,""]
[null,null,"",null,null,null,null,"",null,null,null,null,null,null,null,null,null,null,null,null,null,null,null,null,null,null,null,null,null,null,null,null,null,null,null,null,null,null,null,null,null,null,null,null,null,null,null,null,null,null,null,"",0,null,null,""]
[null,null,"",null,null,null,null,"",null,null,null,null,null,null,null,null,null,null,null,null,null,null,null,null,null,null,null,null,null,null,null,null,null,null,null,null,null,null,null,null,null,null,null,null,null,null,null,null,null,null,null,"",0,null,null,""]
[null,null,"",null,null,null,null,"",null,null,null,null,null,null,null,null,null,null,null,null,null,null,null,null,null,null,null,null,null,null,null,null,null,null,null,null,null,null,null,null,null,null,null,null,null,null,null,null,null,null,null,"",0,null,null,""]
[null,null,"",null,null,null,null,"",null,null,null,null,null,null,null,null,null,null,null,null,null,null,null,null,null,null,null,null,null,null,null,null,null,null,null,null,null,null,null,null,null,null,null,null,null,null,null,null,null,null,null,"",0,null,null,""]
[null,null,"",null,null,null,null,"",null,null,null,null,null,null,null,null,null,null,null,null,null,null,null,null,null,null,null,null,null,null,null,null,null,null,null,null,null,null,null,null,null,null,null,null,null,null,null,null,null,null,null,"",0,null,null,""]
[null,null,"",null,null,null,null,"",null,null,null,null,null,null,null,null,null,null,null,null,null,null,null,null,null,null,null,null,null,null,null,null,null,null,null,null,null,null,null,null,null,null,null,null,null,null,null,null,null,null,null,"",0,null,null,""]
[null,null,"",null,null,null,null,"",null,null,null,null,null,null,null,null,null,null,null,null,null,null,null,null,null,null,null,null,null,null,null,null,null,null,null,null,null,null,null,null,null,null,null,null,null,null,null,null,null,null,null,"",0,null,null,""]
[null,null,"",null,null,null,null,"",null,null,null,null,null,null,null,null,null,null,null,null,null,null,null,null,null,null,null,null,null,null,null,null,null,null,null,null,null,null,null,null,null,null,null,null,null,null,null,null,null,null,null,"",0,null,null,""]
[null,null,"",null,null,null,null,"",null,null,null,null,null,null,null,null,null,null,null,null,null,null,null,null,null,null,null,null,null,null,null,null,null,null,null,null,null,null,null,null,null,null,null,null,null,null,null,null,null,null,null,"",0,null,null,""]
[null,"TOTAL",{"$f":"C3","v":"$"},{"$f":"SUM(D11:D40)","v":0},null,null,null,null,null,null,null,null,null,null,null,null,null,null,null,null,null,null,null,null,null,null,null,null,null,null,null,null,null,null,null,null,null,null,null,null,null,null,null,null,null,null,null,null,"TOTAL",null,null,{"$f":"C3","v":"$"},{"$f":"SUM(BA11:BA40)","v":0},null,"TOTAL",{"$f":"C3","v":"$"},{"$f":"SUM(BE11:BE40)","v":0}]

{"sheet":"October","index":10,"n_rows":41,"n_cols":57,"rows_kept":41,"cut":false,"hidden":false,"merged":[[7,44,7,50],[7,13,7,43],[8,1,8,3],[8,5,8,8],[8,54,8,56],[40,48,40,50],[4,7,5,7],[4,8,5,10],[4,43,5,48],[4,49,5,49],[4,50,5,52],[4,5,5,6],[7,9,7,12],[0,0,0,1],[2,1,3,1],[2,2,3,3],[4,1,5,1],[4,2,5,3]]}
[]
[]
[null,"Currency","$"]
[]
[null,"Payday Week","(Week 1) 27 Sep - 3 Oct 2021",null,null,"INCOME TOTAL",null,{"$f":"C3","v":"$"},{"$f":"D41","v":0},null,null,null,null,null,null,null,null,null,null,null,null,null,null,null,null,null,null,null,null,null,null,null,null,null,null,null,null,null,null,null,null,null,null,"INCOME BALANCE",null,null,null,null,null,{"$f":"C3","v":"$"},{"$f":"D41-BA41","v":0}]
[]
[]
[null,null,null,null,null,null,null,null,null,"Sep",null,null,null,"Oct",null,null,null,null,null,null,null,null,null,null,null,null,null,null,null,null,null,null,null,null,null,null,null,null,null,null,null,null,null,null,"Nov"]
[null,"Income Table",null,null,null,"Main Table",null,null,null,27,28,29,30,1,2,3,4,5,6,7,8,9,10,11,12,13,14,15,16,17,18,19,20,21,22,23,24,25,26,27,28,29,30,31,1,2,3,4,5,6,7,null,null,null,"Pocket Balance Table"]
[null,"Income",null,"Value",null,"Category","Expense",null,"Budget","M","T","W","T","F","S","S","M","T","W","T","F","S","S","M","T","W","T","F","S","S","M","T","W","T","F","S","S","M","T","W","T","F","S","S","M","T","W","T","F","S","S",null,"Sum",null,"Balance",null,"Value"]
[null,null,{"$f":"IF(B11<>\"\", $C$3,\"\")","v":""},null,null,null,null,{"$f":"+IF(G11<>\"\",$C$3,\"\")","v":""},null,null,null,null,null,null,null,null,null,null,null,null,null,null,null,null,null,null,null,null,null,null,null,null,null,null,null,null,null,null,null,null,null,null,null,null,null,null,null,null,null,null,null,{"$f":"IF(BA11<>0,$C$3,\"\")","v":""},{"$f":"SUM(J11:AY11)","v":0},null,null,{"$f":"IF(BC11<>\"\",$C$3,\"\")","v":""}]
[null,null,{"$f":"IF(B12<>\"\", $C$3,\"\")","v":""},null,null,null,null,{"$f":"+IF(G12<>\"\",$C$3,\"\")","v":""},null,null,null,null,null,null,null,null,null,null,null,null,null,null,null,null,null,null,null,null,null,null,null,null,null,null,null,null,null,null,null,null,null,null,null,null,null,null,null,null,null,null,null,{"$f":"IF(BA12<>0,$C$3,\"\")","v":""},{"$f":"SUM(J12:AY12)","v":0},null,null,{"$f":"IF(BC12<>\"\",$C$3,\"\")","v":""}]
[null,null,{"$f":"IF(B13<>\"\", $C$3,\"\")","v":""},null,null,null,null,{"$f":"+IF(G13<>\"\",$C$3,\"\")","v":""},null,null,null,null,null,null,null,null,null,null,null,null,null,null,null,null,null,null,null,null,null,null,null,null,null,null,null,null,null,null,null,null,null,null,null,null,null,null,null,null,null,null,null,"",0,null,null,""]
[null,null,"",null,null,null,null,"",null,null,null,null,null,null,null,null,null,null,null,null,null,null,null,null,null,null,null,null,null,null,null,null,null,null,null,null,null,null,null,null,null,null,null,null,null,null,null,null,null,null,null,"",0,null,null,""]
[null,null,"",null,null,null,null,"",null,null,null,null,null,null,null,null,null,null,null,null,null,null,null,null,null,null,null,null,null,null,null,null,null,null,null,null,null,null,null,null,null,null,null,null,null,null,null,null,null,null,null,{"$f":"IF(BA15<>0,$C$3,\"\")","v":""},0,null,null,""]
[null,null,"",null,null,null,null,"",null,null,null,null,null,null,null,null,null,null,null,null,null,null,null,null,null,null,null,null,null,null,null,null,null,null,null,null,null,null,null,null,null,null,null,null,null,null,null,null,null,null,null,{"$f":"IF(BA16<>0,$C$3,\"\")","v":""},0,null,null,""]
[null,null,"",null,null,null,null,"",null,null,null,null,null,null,null,null,null,null,null,null,null,null,null,null,null,null,null,null,null,null,null,null,null,null,null,null,null,null,null,null,null,null,null,null,null,null,null,null,null,null,null,"",0,null,null,""]
[null,null,"",null,null,null,null,"",null,null,null,null,null,null,null,null,null,null,null,null,null,null,null,null,null,null,null,null,null,null,null,null,null,null,null,null,null,null,null,null,null,null,null,null,null,null,null,null,null,null,null,"",0,null,null,""]
[null,null,"",null,null,null,null,"",null,null,null,null,null,null,null,null,null,null,null,null,null,null,null,null,null,null,null,null,null,null,null,null,null,null,null,null,null,null,null,null,null,null,null,null,null,null,null,null,null,null,null,"",0,null,null,""]
[null,null,"",null,null,null,null,"",null,null,null,null,null,null,null,null,null,null,null,null,null,null,null,null,null,null,null,null,null,null,null,null,null,null,null,null,null,null,null,null,null,null,null,null,null,null,null,null,null,null,null,"",0,null,null,""]
[null,null,"",null,null,null,null,"",null,null,null,null,null,null,null,null,null,null,null,null,null,null,null,null,null,null,null,null,null,null,null,null,null,null,null,null,null,null,null,null,null,null,null,null,null,null,null,null,null,null,null,"",0,null,null,""]
[null,null,"",null,null,null,null,"",null,null,null,null,null,null,null,null,null,null,null,null,null,null,null,null,null,null,null,null,null,null,null,null,null,null,null,null,null,null,null,null,null,null,null,null,null,null,null,null,null,null,null,"",0,null,null,""]
[null,null,"",null,null,null,null,"",null,null,null,null,null,null,null,null,null,null,null,null,null,null,null,null,null,null,null,null,null,null,null,null,null,null,null,null,null,null,null,null,null,null,null,null,null,null,null,null,null,null,null,"",0,null,null,""]
[null,null,"",null,null,null,null,"",null,null,null,null,null,null,null,null,null,null,null,null,null,null,null,null,null,null,null,null,null,null,null,null,null,null,null,null,null,null,null,null,null,null,null,null,null,null,null,null,null,null,null,"",0,null,null,""]
[null,null,"",null,null,null,null,"",null,null,null,null,null,null,null,null,null,null,null,null,null,null,null,null,null,null,null,null,null,null,null,null,null,null,null,null,null,null,null,null,null,null,null,null,null,null,null,null,null,null,null,"",0,null,null,""]
[null,null,"",null,null,null,null,"",null,null,null,null,null,null,null,null,null,null,null,null,null,null,null,null,null,null,null,null,null,null,null,null,null,null,null,null,null,null,null,null,null,null,null,null,null,null,null,null,null,null,null,"",0,null,null,""]
[null,null,"",null,null,null,null,"",null,null,null,null,null,null,null,null,null,null,null,null,null,null,null,null,null,null,null,null,null,null,null,null,null,null,null,null,null,null,null,null,null,null,null,null,null,null,null,null,null,null,null,"",0,null,null,""]
[null,null,"",null,null,null,null,"",null,null,null,null,null,null,null,null,null,null,null,null,null,null,null,null,null,null,null,null,null,null,null,null,null,null,null,null,null,null,null,null,null,null,null,null,null,null,null,null,null,null,null,"",0,null,null,""]
[null,null,"",null,null,null,null,"",null,null,null,null,null,null,null,null,null,null,null,null,null,null,null,null,null,null,null,null,null,null,null,null,null,null,null,null,null,null,null,null,null,null,null,null,null,null,null,null,null,null,null,"",0,null,null,""]
[null,null,"",null,null,null,null,"",null,null,null,null,null,null,null,null,null,null,null,null,null,null,null,null,null,null,null,null,null,null,null,null,null,null,null,null,null,null,null,null,null,null,null,null,null,null,null,null,null,null,null,"",0,null,null,""]
[null,null,"",null,null,null,null,"",null,null,null,null,null,null,null,null,null,null,null,null,null,null,null,null,null,null,null,null,null,null,null,null,null,null,null,null,null,null,null,null,null,null,null,null,null,null,null,null,null,null,null,"",0,null,null,""]
[null,null,"",null,null,null,null,"",null,null,null,null,null,null,null,null,null,null,null,null,null,null,null,null,null,null,null,null,null,null,null,null,null,null,null,null,null,null,null,null,null,null,null,null,null,null,null,null,null,null,null,"",0,null,null,""]
[null,null,"",null,null,null,null,"",null,null,null,null,null,null,null,null,null,null,null,null,null,null,null,null,null,null,null,null,null,null,null,null,null,null,null,null,null,null,null,null,null,null,null,null,null,null,null,null,null,null,null,"",0,null,null,""]
[null,null,"",null,null,null,null,"",null,null,null,null,null,null,null,null,null,null,null,null,null,null,null,null,null,null,null,null,null,null,null,null,null,null,null,null,null,null,null,null,null,null,null,null,null,null,null,null,null,null,null,"",0,null,null,""]
[null,null,"",null,null,null,null,"",null,null,null,null,null,null,null,null,null,null,null,null,null,null,null,null,null,null,null,null,null,null,null,null,null,null,null,null,null,null,null,null,null,null,null,null,null,null,null,null,null,null,null,"",0,null,null,""]
[null,null,"",null,null,null,null,"",null,null,null,null,null,null,null,null,null,null,null,null,null,null,null,null,null,null,null,null,null,null,null,null,null,null,null,null,null,null,null,null,null,null,null,null,null,null,null,null,null,null,null,"",0,null,null,""]
[null,null,"",null,null,null,null,"",null,null,null,null,null,null,null,null,null,null,null,null,null,null,null,null,null,null,null,null,null,null,null,null,null,null,null,null,null,null,null,null,null,null,null,null,null,null,null,null,null,null,null,"",0,null,null,""]
[null,null,"",null,null,null,null,"",null,null,null,null,null,null,null,null,null,null,null,null,null,null,null,null,null,null,null,null,null,null,null,null,null,null,null,null,null,null,null,null,null,null,null,null,null,null,null,null,null,null,null,"",0,null,null,""]
[null,null,"",null,null,null,null,"",null,null,null,null,null,null,null,null,null,null,null,null,null,null,null,null,null,null,null,null,null,null,null,null,null,null,null,null,null,null,null,null,null,null,null,null,null,null,null,null,null,null,null,"",0,null,null,""]
[null,null,"",null,null,null,null,"",null,null,null,null,null,null,null,null,null,null,null,null,null,null,null,null,null,null,null,null,null,null,null,null,null,null,null,null,null,null,null,null,null,null,null,null,null,null,null,null,null,null,null,"",0,null,null,""]
[null,"TOTAL",{"$f":"C3","v":"$"},{"$f":"SUM(D11:D40)","v":0},null,null,null,null,null,null,null,null,null,null,null,null,null,null,null,null,null,null,null,null,null,null,null,null,null,null,null,null,null,null,null,null,null,null,null,null,null,null,null,null,null,null,null,null,"TOTAL",null,null,{"$f":"C3","v":"$"},{"$f":"SUM(BA11:BA40)","v":0},null,"TOTAL",{"$f":"C3","v":"$"},{"$f":"SUM(BE11:BE40)","v":0}]

{"sheet":"November","index":11,"n_rows":41,"n_cols":57,"rows_kept":41,"cut":false,"hidden":false,"merged":[[7,9,7,38],[7,39,7,50],[8,1,8,3],[8,5,8,8],[8,54,8,56],[40,48,40,50],[4,7,5,7],[4,8,5,10],[4,43,5,48],[4,49,5,49],[4,50,5,52],[4,5,5,6],[0,0,0,1],[2,1,3,1],[2,2,3,3],[4,1,5,1],[4,2,5,3]]}
[]
[]
[null,"Currency","$"]
[]
[null,"Payday Week","(Week 1) 1 Nov - 7 Nov 2021",null,null,"INCOME TOTAL",null,{"$f":"C3","v":"$"},{"$f":"D41","v":0},null,null,null,null,null,null,null,null,null,null,null,null,null,null,null,null,null,null,null,null,null,null,null,null,null,null,null,null,null,null,null,null,null,null,"INCOME BALANCE",null,null,null,null,null,{"$f":"C3","v":"$"},{"$f":"D41-BA41","v":0}]
[]
[]
[null,null,null,null,null,null,null,null,null,"Nov",null,null,null,null,null,null,null,null,null,null,null,null,null,null,null,null,null,null,null,null,null,null,null,null,null,null,null,null,null,"Dec"]
[null,"Income Table",null,null,null,"Main Table",null,null,null,1,2,3,4,5,6,7,8,9,10,11,12,13,14,15,16,17,18,19,20,21,22,23,24,25,26,27,28,29,30,1,2,3,4,5,6,7,8,9,10,11,12,null,null,null,"Pocket Balance Table"]
[null,"Income",null,"Value",null,"Category","Expense",null,"Budget","M","T","W","T","F","S","S","M","T","W","T","F","S","S","M","T","W","T","F","S","S","M","T","W","T","F","S","S","M","T","W","T","F","S","S","M","T","W","T","F","S","S",null,"Sum",null,"Balance",null,"Value"]
[null,null,{"$f":"IF(B11<>\"\", $C$3,\"\")","v":""},null,null,null,null,{"$f":"+IF(G11<>\"\",$C$3,\"\")","v":""},null,null,null,null,null,null,null,null,null,null,null,null,null,null,null,null,null,null,null,null,null,null,null,null,null,null,null,null,null,null,null,null,null,null,null,null,null,null,null,null,null,null,null,{"$f":"IF(BA11<>0,$C$3,\"\")","v":""},{"$f":"SUM(J11:AY11)","v":0},null,null,{"$f":"IF(BC11<>\"\",$C$3,\"\")","v":""}]
[null,null,{"$f":"IF(B12<>\"\", $C$3,\"\")","v":""},null,null,null,null,{"$f":"+IF(G12<>\"\",$C$3,\"\")","v":""},null,null,null,null,null,null,null,null,null,null,null,null,null,null,null,null,null,null,null,null,null,null,null,null,null,null,null,null,null,null,null,null,null,null,null,null,null,null,null,null,null,null,null,{"$f":"IF(BA12<>0,$C$3,\"\")","v":""},{"$f":"SUM(J12:AY12)","v":0},null,null,{"$f":"IF(BC12<>\"\",$C$3,\"\")","v":""}]
[null,null,{"$f":"IF(B13<>\"\", $C$3,\"\")","v":""},null,null,null,null,{"$f":"+IF(G13<>\"\",$C$3,\"\")","v":""},null,null,null,null,null,null,null,null,null,null,null,null,null,null,null,null,null,null,null,null,null,null,null,null,null,null,null,null,null,null,null,null,null,null,null,null,null,null,null,null,null,null,null,"",0,null,null,""]
[null,null,"",null,null,null,null,"",null,null,null,null,null,null,null,null,null,null,null,null,null,null,null,null,null,null,null,null,null,null,null,null,null,null,null,null,null,null,null,null,null,null,null,null,null,null,null,null,null,null,null,"",0,null,null,""]
[null,null,"",null,null,null,null,"",null,null,null,null,null,null,null,null,null,null,null,null,null,null,null,null,null,null,null,null,null,null,null,null,null,null,null,null,null,null,null,null,null,null,null,null,null,null,null,null,null,null,null,{"$f":"IF(BA15<>0,$C$3,\"\")","v":""},0,null,null,""]
[null,null,"",null,null,null,null,"",null,null,null,null,null,null,null,null,null,null,null,null,null,null,null,null,null,null,null,null,null,null,null,null,null,null,null,null,null,null,null,null,null,null,null,null,null,null,null,null,null,null,null,{"$f":"IF(BA16<>0,$C$3,\"\")","v":""},0,null,null,""]
[null,null,"",null,null,null,null,"",null,null,null,null,null,null,null,null,null,null,null,null,null,null,null,null,null,null,null,null,null,null,null,null,null,null,null,null,null,null,null,null,null,null,null,null,null,null,null,null,null,null,null,"",0,null,null,""]
[null,null,"",null,null,null,null,"",null,null,null,null,null,null,null,null,null,null,null,null,null,null,null,null,null,null,null,null,null,null,null,null,null,null,null,null,null,null,null,null,null,null,null,null,null,null,null,null,null,null,null,"",0,null,null,""]
[null,null,"",null,null,null,null,"",null,null,null,null,null,null,null,null,null,null,null,null,null,null,null,null,null,null,null,null,null,null,null,null,null,null,null,null,null,null,null,null,null,null,null,null,null,null,null,null,null,null,null,"",0,null,null,""]
[null,null,"",null,null,null,null,"",null,null,null,null,null,null,null,null,null,null,null,null,null,null,null,null,null,null,null,null,null,null,null,null,null,null,null,null,null,null,null,null,null,null,null,null,null,null,null,null,null,null,null,"",0,null,null,""]
[null,null,"",null,null,null,null,"",null,null,null,null,null,null,null,null,null,null,null,null,null,null,null,null,null,null,null,null,null,null,null,null,null,null,null,null,null,null,null,null,null,null,null,null,null,null,null,null,null,null,null,"",0,null,null,""]
[null,null,"",null,null,null,null,"",null,null,null,null,null,null,null,null,null,null,null,null,null,null,null,null,null,null,null,null,null,null,null,null,null,null,null,null,null,null,null,null,null,null,null,null,null,null,null,null,null,null,null,"",0,null,null,""]
[null,null,"",null,null,null,null,"",null,null,null,null,null,null,null,null,null,null,null,null,null,null,null,null,null,null,null,null,null,null,null,null,null,null,null,null,null,null,null,null,null,null,null,null,null,null,null,null,null,null,null,"",0,null,null,""]
[null,null,"",null,null,null,null,"",null,null,null,null,null,null,null,null,null,null,null,null,null,null,null,null,null,null,null,null,null,null,null,null,null,null,null,null,null,null,null,null,null,null,null,null,null,null,null,null,null,null,null,"",0,null,null,""]
[null,null,"",null,null,null,null,"",null,null,null,null,null,null,null,null,null,null,null,null,null,null,null,null,null,null,null,null,null,null,null,null,null,null,null,null,null,null,null,null,null,null,null,null,null,null,null,null,null,null,null,"",0,null,null,""]
[null,null,"",null,null,null,null,"",null,null,null,null,null,null,null,null,null,null,null,null,null,null,null,null,null,null,null,null,null,null,null,null,null,null,null,null,null,null,null,null,null,null,null,null,null,null,null,null,null,null,null,"",0,null,null,""]
[null,null,"",null,null,null,null,"",null,null,null,null,null,null,null,null,null,null,null,null,null,null,null,null,null,null,null,null,null,null,null,null,null,null,null,null,null,null,null,null,null,null,null,null,null,null,null,null,null,null,null,"",0,null,null,""]
[null,null,"",null,null,null,null,"",null,null,null,null,null,null,null,null,null,null,null,null,null,null,null,null,null,null,null,null,null,null,null,null,null,null,null,null,null,null,null,null,null,null,null,null,null,null,null,null,null,null,null,"",0,null,null,""]
[null,null,"",null,null,null,null,"",null,null,null,null,null,null,null,null,null,null,null,null,null,null,null,null,null,null,null,null,null,null,null,null,null,null,null,null,null,null,null,null,null,null,null,null,null,null,null,null,null,null,null,"",0,null,null,""]
[null,null,"",null,null,null,null,"",null,null,null,null,null,null,null,null,null,null,null,null,null,null,null,null,null,null,null,null,null,null,null,null,null,null,null,null,null,null,null,null,null,null,null,null,null,null,null,null,null,null,null,"",0,null,null,""]
[null,null,"",null,null,null,null,"",null,null,null,null,null,null,null,null,null,null,null,null,null,null,null,null,null,null,null,null,null,null,null,null,null,null,null,null,null,null,null,null,null,null,null,null,null,null,null,null,null,null,null,"",0,null,null,""]
[null,null,"",null,null,null,null,"",null,null,null,null,null,null,null,null,null,null,null,null,null,null,null,null,null,null,null,null,null,null,null,null,null,null,null,null,null,null,null,null,null,null,null,null,null,null,null,null,null,null,null,"",0,null,null,""]
[null,null,"",null,null,null,null,"",null,null,null,null,null,null,null,null,null,null,null,null,null,null,null,null,null,null,null,null,null,null,null,null,null,null,null,null,null,null,null,null,null,null,null,null,null,null,null,null,null,null,null,"",0,null,null,""]
[null,null,"",null,null,null,null,"",null,null,null,null,null,null,null,null,null,null,null,null,null,null,null,null,null,null,null,null,null,null,null,null,null,null,null,null,null,null,null,null,null,null,null,null,null,null,null,null,null,null,null,"",0,null,null,""]
[null,null,"",null,null,null,null,"",null,null,null,null,null,null,null,null,null,null,null,null,null,null,null,null,null,null,null,null,null,null,null,null,null,null,null,null,null,null,null,null,null,null,null,null,null,null,null,null,null,null,null,"",0,null,null,""]
[null,null,"",null,null,null,null,"",null,null,null,null,null,null,null,null,null,null,null,null,null,null,null,null,null,null,null,null,null,null,null,null,null,null,null,null,null,null,null,null,null,null,null,null,null,null,null,null,null,null,null,"",0,null,null,""]
[null,null,"",null,null,null,null,"",null,null,null,null,null,null,null,null,null,null,null,null,null,null,null,null,null,null,null,null,null,null,null,null,null,null,null,null,null,null,null,null,null,null,null,null,null,null,null,null,null,null,null,"",0,null,null,""]
[null,null,"",null,null,null,null,"",null,null,null,null,null,null,null,null,null,null,null,null,null,null,null,null,null,null,null,null,null,null,null,null,null,null,null,null,null,null,null,null,null,null,null,null,null,null,null,null,null,null,null,"",0,null,null,""]
[null,null,"",null,null,null,null,"",null,null,null,null,null,null,null,null,null,null,null,null,null,null,null,null,null,null,null,null,null,null,null,null,null,null,null,null,null,null,null,null,null,null,null,null,null,null,null,null,null,null,null,"",0,null,null,""]
[null,null,"",null,null,null,null,"",null,null,null,null,null,null,null,null,null,null,null,null,null,null,null,null,null,null,null,null,null,null,null,null,null,null,null,null,null,null,null,null,null,null,null,null,null,null,null,null,null,null,null,"",0,null,null,""]
[null,"TOTAL",{"$f":"C3","v":"$"},{"$f":"SUM(D11:D40)","v":0},null,null,null,null,null,null,null,null,null,null,null,null,null,null,null,null,null,null,null,null,null,null,null,null,null,null,null,null,null,null,null,null,null,null,null,null,null,null,null,null,null,null,null,null,"TOTAL",null,null,{"$f":"C3","v":"$"},{"$f":"SUM(BA11:BA40)","v":0},null,"TOTAL",{"$f":"C3","v":"$"},{"$f":"SUM(BE11:BE40)","v":0}]

{"sheet":"December","index":12,"n_rows":41,"n_cols":57,"rows_kept":41,"cut":false,"hidden":false,"merged":[[7,42,7,50],[7,11,7,41],[8,1,8,3],[8,5,8,8],[8,54,8,56],[40,48,40,50],[4,7,5,7],[4,8,5,10],[4,43,5,48],[4,49,5,49],[4,50,5,52],[4,5,5,6],[7,9,7,10],[0,0,0,1],[2,1,3,1],[2,2,3,3],[4,1,5,1],[4,2,5,3]]}
[]
[]
[null,"Currency","$"]
[]
[null,"Payday Week","(Week 1) 29 Nov - 5 Dec 2021",null,null,"INCOME TOTAL",null,{"$f":"C3","v":"$"},{"$f":"D41","v":0},null,null,null,null,null,null,null,null,null,null,null,null,null,null,null,null,null,null,null,null,null,null,null,null,null,null,null,null,null,null,null,null,null,null,"INCOME BALANCE",null,null,null,null,null,{"$f":"C3","v":"$"},{"$f":"D41-BA41","v":0}]
[]
[]
[null,null,null,null,null,null,null,null,null,"Nov",null,"Dec",null,null,null,null,null,null,null,null,null,null,null,null,null,null,null,null,null,null,null,null,null,null,null,null,null,null,null,null,null,null,"2022-01-01"]
[null,"Income Table",null,null,null,"Main Table",null,null,null,29,30,1,2,3,4,5,6,7,8,9,10,11,12,13,14,15,16,17,18,19,20,21,22,23,24,25,26,27,28,29,30,31,1,2,3,4,5,6,7,8,9,null,null,null,"Pocket Balance Table"]
[null,"Income",null,"Value",null,"Category","Expense",null,"Budget","M","T","W","T","F","S","S","M","T","W","T","F","S","S","M","T","W","T","F","S","S","M","T","W","T","F","S","S","M","T","W","T","F","S","S","M","T","W","T","F","S","S",null,"Sum",null,"Balance",null,"Value"]
[null,null,{"$f":"IF(B11<>\"\", $C$3,\"\")","v":""},null,null,null,null,{"$f":"+IF(G11<>\"\",$C$3,\"\")","v":""},null,null,null,null,null,null,null,null,null,null,null,null,null,null,null,null,null,null,null,null,null,null,null,null,null,null,null,null,null,null,null,null,null,null,null,null,null,null,null,null,null,null,null,{"$f":"IF(BA11<>0,$C$3,\"\")","v":""},{"$f":"SUM(J11:AY11)","v":0},null,null,{"$f":"IF(BC11<>\"\",$C$3,\"\")","v":""}]
[null,null,{"$f":"IF(B12<>\"\", $C$3,\"\")","v":""},null,null,null,null,{"$f":"+IF(G12<>\"\",$C$3,\"\")","v":""},null,null,null,null,null,null,null,null,null,null,null,null,null,null,null,null,null,null,null,null,null,null,null,null,null,null,null,null,null,null,null,null,null,null,null,null,null,null,null,null,null,null,null,{"$f":"IF(BA12<>0,$C$3,\"\")","v":""},{"$f":"SUM(J12:AY12)","v":0},null,null,{"$f":"IF(BC12<>\"\",$C$3,\"\")","v":""}]
[null,null,{"$f":"IF(B13<>\"\", $C$3,\"\")","v":""},null,null,null,null,{"$f":"+IF(G13<>\"\",$C$3,\"\")","v":""},null,null,null,null,null,null,null,null,null,null,null,null,null,null,null,null,null,null,null,null,null,null,null,null,null,null,null,null,null,null,null,null,null,null,null,null,null,null,null,null,null,null,null,"",0,null,null,""]
[null,null,"",null,null,null,null,"",null,null,null,null,null,null,null,null,null,null,null,null,null,null,null,null,null,null,null,null,null,null,null,null,null,null,null,null,null,null,null,null,null,null,null,null,null,null,null,null,null,null,null,"",0,null,null,""]
[null,null,"",null,null,null,null,"",null,null,null,null,null,null,null,null,null,null,null,null,null,null,null,null,null,null,null,null,null,null,null,null,null,null,null,null,null,null,null,null,null,null,null,null,null,null,null,null,null,null,null,{"$f":"IF(BA15<>0,$C$3,\"\")","v":""},0,null,null,""]
[null,null,"",null,null,null,null,"",null,null,null,null,null,null,null,null,null,null,null,null,null,null,null,null,null,null,null,null,null,null,null,null,null,null,null,null,null,null,null,null,null,null,null,null,null,null,null,null,null,null,null,{"$f":"IF(BA16<>0,$C$3,\"\")","v":""},0,null,null,""]
[null,null,"",null,null,null,null,"",null,null,null,null,null,null,null,null,null,null,null,null,null,null,null,null,null,null,null,null,null,null,null,null,null,null,null,null,null,null,null,null,null,null,null,null,null,null,null,null,null,null,null,"",0,null,null,""]
[null,null,"",null,null,null,null,"",null,null,null,null,null,null,null,null,null,null,null,null,null,null,null,null,null,null,null,null,null,null,null,null,null,null,null,null,null,null,null,null,null,null,null,null,null,null,null,null,null,null,null,"",0,null,null,""]
[null,null,"",null,null,null,null,"",null,null,null,null,null,null,null,null,null,null,null,null,null,null,null,null,null,null,null,null,null,null,null,null,null,null,null,null,null,null,null,null,null,null,null,null,null,null,null,null,null,null,null,"",0,null,null,""]
[null,null,"",null,null,null,null,"",null,null,null,null,null,null,null,null,null,null,null,null,null,null,null,null,null,null,null,null,null,null,null,null,null,null,null,null,null,null,null,null,null,null,null,null,null,null,null,null,null,null,null,"",0,null,null,""]
[null,null,"",null,null,null,null,"",null,null,null,null,null,null,null,null,null,null,null,null,null,null,null,null,null,null,null,null,null,null,null,null,null,null,null,null,null,null,null,null,null,null,null,null,null,null,null,null,null,null,null,"",0,null,null,""]
[null,null,"",null,null,null,null,"",null,null,null,null,null,null,null,null,null,null,null,null,null,null,null,null,null,null,null,null,null,null,null,null,null,null,null,null,null,null,null,null,null,null,null,null,null,null,null,null,null,null,null,"",0,null,null,""]
[null,null,"",null,null,null,null,"",null,null,null,null,null,null,null,null,null,null,null,null,null,null,null,null,null,null,null,null,null,null,null,null,null,null,null,null,null,null,null,null,null,null,null,null,null,null,null,null,null,null,null,"",0,null,null,""]
[null,null,"",null,null,null,null,"",null,null,null,null,null,null,null,null,null,null,null,null,null,null,null,null,null,null,null,null,null,null,null,null,null,null,null,null,null,null,null,null,null,null,null,null,null,null,null,null,null,null,null,"",0,null,null,""]
[null,null,"",null,null,null,null,"",null,null,null,null,null,null,null,null,null,null,null,null,null,null,null,null,null,null,null,null,null,null,null,null,null,null,null,null,null,null,null,null,null,null,null,null,null,null,null,null,null,null,null,"",0,null,null,""]
[null,null,"",null,null,null,null,"",null,null,null,null,null,null,null,null,null,null,null,null,null,null,null,null,null,null,null,null,null,null,null,null,null,null,null,null,null,null,null,null,null,null,null,null,null,null,null,null,null,null,null,"",0,null,null,""]
[null,null,"",null,null,null,null,"",null,null,null,null,null,null,null,null,null,null,null,null,null,null,null,null,null,null,null,null,null,null,null,null,null,null,null,null,null,null,null,null,null,null,null,null,null,null,null,null,null,null,null,"",0,null,null,""]
[null,null,"",null,null,null,null,"",null,null,null,null,null,null,null,null,null,null,null,null,null,null,null,null,null,null,null,null,null,null,null,null,null,null,null,null,null,null,null,null,null,null,null,null,null,null,null,null,null,null,null,"",0,null,null,""]
[null,null,"",null,null,null,null,"",null,null,null,null,null,null,null,null,null,null,null,null,null,null,null,null,null,null,null,null,null,null,null,null,null,null,null,null,null,null,null,null,null,null,null,null,null,null,null,null,null,null,null,"",0,null,null,""]
[null,null,"",null,null,null,null,"",null,null,null,null,null,null,null,null,null,null,null,null,null,null,null,null,null,null,null,null,null,null,null,null,null,null,null,null,null,null,null,null,null,null,null,null,null,null,null,null,null,null,null,"",0,null,null,""]
[null,null,"",null,null,null,null,"",null,null,null,null,null,null,null,null,null,null,null,null,null,null,null,null,null,null,null,null,null,null,null,null,null,null,null,null,null,null,null,null,null,null,null,null,null,null,null,null,null,null,null,"",0,null,null,""]
[null,null,"",null,null,null,null,"",null,null,null,null,null,null,null,null,null,null,null,null,null,null,null,null,null,null,null,null,null,null,null,null,null,null,null,null,null,null,null,null,null,null,null,null,null,null,null,null,null,null,null,"",0,null,null,""]
[null,null,"",null,null,null,null,"",null,null,null,null,null,null,null,null,null,null,null,null,null,null,null,null,null,null,null,null,null,null,null,null,null,null,null,null,null,null,null,null,null,null,null,null,null,null,null,null,null,null,null,"",0,null,null,""]
[null,null,"",null,null,null,null,"",null,null,null,null,null,null,null,null,null,null,null,null,null,null,null,null,null,null,null,null,null,null,null,null,null,null,null,null,null,null,null,null,null,null,null,null,null,null,null,null,null,null,null,"",0,null,null,""]
[null,null,"",null,null,null,null,"",null,null,null,null,null,null,null,null,null,null,null,null,null,null,null,null,null,null,null,null,null,null,null,null,null,null,null,null,null,null,null,null,null,null,null,null,null,null,null,null,null,null,null,"",0,null,null,""]
[null,null,"",null,null,null,null,"",null,null,null,null,null,null,null,null,null,null,null,null,null,null,null,null,null,null,null,null,null,null,null,null,null,null,null,null,null,null,null,null,null,null,null,null,null,null,null,null,null,null,null,"",0,null,null,""]
[null,null,"",null,null,null,null,"",null,null,null,null,null,null,null,null,null,null,null,null,null,null,null,null,null,null,null,null,null,null,null,null,null,null,null,null,null,null,null,null,null,null,null,null,null,null,null,null,null,null,null,"",0,null,null,""]
[null,null,"",null,null,null,null,"",null,null,null,null,null,null,null,null,null,null,null,null,null,null,null,null,null,null,null,null,null,null,null,null,null,null,null,null,null,null,null,null,null,null,null,null,null,null,null,null,null,null,null,"",0,null,null,""]
[null,null,"",null,null,null,null,"",null,null,null,null,null,null,null,null,null,null,null,null,null,null,null,null,null,null,null,null,null,null,null,null,null,null,null,null,null,null,null,null,null,null,null,null,null,null,null,null,null,null,null,"",0,null,null,""]
[null,null,"",null,null,null,null,"",null,null,null,null,null,null,null,null,null,null,null,null,null,null,null,null,null,null,null,null,null,null,null,null,null,null,null,null,null,null,null,null,null,null,null,null,null,null,null,null,null,null,null,"",0,null,null,""]
[null,"TOTAL",{"$f":"C3","v":"$"},{"$f":"SUM(D11:D40)","v":0},null,null,null,null,null,null,null,null,null,null,null,null,null,null,null,null,null,null,null,null,null,null,null,null,null,null,null,null,null,null,null,null,null,null,null,null,null,null,null,null,null,null,null,null,"TOTAL",null,null,{"$f":"C3","v":"$"},{"$f":"SUM(BA11:BA40)","v":0},null,"TOTAL",{"$f":"C3","v":"$"},{"$f":"SUM(BE11:BE40)","v":0}]